Workbook

Sheet Dt (hidden)
B1: No eliminar Hoja … :))) | AA1: No | AB1: Campo | AC1: 1_Opcion | AD1: 2_Opcion | AF1: Avaya1719 | AQ1: http://scienti.colciencias.gov.co:8080/gruplac/jsp/visualiza/visualizagr.jsp?nro=
AA2: 1 | AB2: Sedes | AC2: Calle 100 | AT2: BB | AV2: =MIN(BD3:BD300) -> 4 | AW2: =MAX(BD3:BD300) -> 300
AA3: 2 | AB3: Sedes | AC3: Campus Cajica | AN3: Hoja | AO3: FAC | AP3: Grupo | AQ3: COD | AR3: Clas | AS3: Link | AT3: Lineas | AU3: Fila Grupo | AV3: Min | AW3: Max | BA3: COD | BB3: Lineas | BC3: Cel | BD3: Fila | BG3: Código de Grupo | BL3: Hora | BM3: Agente | BN3: Agente
AA4: 3 | AB4: Sedes | AC4: Medicina | AL4: 1 | AM4: =COUNTIF($AN$4:$AN$78,AL4) -> 1 | AN4: 3 | AO4: CIAS | AP4: Fitoplasmas y Virus | AQ4: COL0028687 | AR4: C | AS4: http://scienti.colciencias.gov.co:8080/gruplac/jsp/visualiza/visualizagr.jsp?nro=00000000008436 | AT4: =$AT$2&AV4&":"&$AT$2&AW4 -> BB10:BB10 | AU4: =ROW() -> 4 | AV4: =MINA(IF(AQ4=$BA$4:$BA$300,$BD$4:$BD$300)) -> 10 | AW4: =MAXA(IF(AQ4=$BA$4:$BA$300,$BD$4:$BD$300)) -> 10 | BA4: COL0049659 | BB4: Medios de comunicación, educación y salud | BC4: 1 | BD4: =ROW() -> 4 | BG4: COL0015722 | BH4: =COUNTIF($AQ$4:$AQ$78,BG4) -> 1 | BL4: 19:54:00 | BM4: a | BN4: a | BO4: =DMIN(BL3:BM12,"hora",BN3:BN4) -> 0.4548611111 | BP4: |
AA5: 4 | AB5: Sedes | AC5: Otros | AL5: 2 | AM5: 1 | AN5: 4 | AO5: CIAS | AP5: Grupo de investigación en Biodiversidad y ecología de abejas silvestres | AQ5: COL0031959 | AR5: B | AS5: http://scienti.colciencias.gov.co:8080/gruplac/jsp/visualiza/visualizagr.jsp?nro=00000000001366 | AT5: =$AT$2&AV5&":"&$AT$2&AW5 -> BB11:BB15 | AU5: =ROW() -> 5 | AV5: =MINA(IF(AQ5=$BA$4:$BA$300,$BD$4:$BD$300)) -> 11 | AW5: =MAXA(IF(AQ5=$BA$4:$BA$300,$BD$4:$BD$300)) -> 15 | BA5: COL0049659 | BB5: Salud Pública y Nutrición, Prevención de la Enfermedad y Promoción de la Salud | BC5: 2 | BD5: =ROW() -> 5 | BG5: COL0026486 | BH5: 1 | BL5: 09:54:00 | BM5: b | BN5: B
AA6: 1 | AB6: Facultad | AC6: Ciencias Básicas | AD6: CIAS | AL6: 3 | AM6: 1 | AN6: 12 | AO6: CIAS | AP6: MATRIX | AQ6: COL0039321 | AR6: C | AS6: http://scienti.colciencias.gov.co:8080/gruplac/jsp/visualiza/visualizagr.jsp?nro=00000000002208 | AT6: BB42:BB46 | AU6: =ROW() -> 6 | AV6: =MINA(IF(AQ6=$BA$4:$BA$300,$BD$4:$BD$300)) -> 42 | AW6: =MAXA(IF(AQ6=$BA$4:$BA$300,$BD$4:$BD$300)) -> 46 | BA6: COL0062704 | BB6: Procesos Organizacionales (Prospectiva de las Organizaciones), Programáticos y Políticos para la Promoción del Desarrollo. | BC6: 1 | BD6: =ROW() -> 6 | BG6: COL0027367 | BH6: 1 | BL6: 17:54:00 | BM6: c | BN6: c
AA7: 2 | AB7: Facultad | AC7: Ciencias Económicas | AD7: ECO | AL7: 4 | AM7: 1 | AN7: 18 | AO7: CIAS | AP7: Desarrollo e integración de estrategias alternativas para la protección de cultivos de importancia económica, con énfasis en control biológico. | AQ7: COL0032278 | AR7: B | AS7: http://scienti.colciencias.gov.co:8080/gruplac/jsp/visualiza/visualizagr.jsp?nro=00000000001399 | AT7: BB65:BB66 | AU7: =ROW() -> 7 | AV7: =MINA(IF(AQ7=$BA$4:$BA$300,$BD$4:$BD$300)) -> 65 | AW7: =MAXA(IF(AQ7=$BA$4:$BA$300,$BD$4:$BD$300)) -> 66 | BA7: COL0062704 | BB7: Prospectiva de las Organizaciones | BC7: 2 | BD7: =ROW() -> 7 | BG7: COL0018448 | BH7: 1 | BL7: 10:55:00 | BM7: a
AA8: 3 | AB8: Facultad | AC8: Derecho | AD8: DER | AL8: 5 | AM8: 1 | AN8: 26 | AO8: CIAS | AP8: Grupo de Micología y Fitopatologia | AQ8: COL0013719 | AR8: A1 | AS8: http://scienti.colciencias.gov.co:8080/gruplac/jsp/visualiza/visualizagr.jsp?nro=00000000001127 | AT8: BB107:BB111 | AU8: =ROW() -> 8 | AV8: =MINA(IF(AQ8=$BA$4:$BA$300,$BD$4:$BD$300)) -> 107 | AW8: =MAXA(IF(AQ8=$BA$4:$BA$300,$BD$4:$BD$300)) -> 111 | BA8: COL0062704 | BB8: Responsabilidad Ambiental | BC8: 3 | BD8: =ROW() -> 8 | BG8: COL0028767 | BH8: 1 | BL8: 11:45:00 | BM8: a
AA9: 4 | AB9: Facultad | AC9: Educación y Humanidades | AD9: HUM | AL9: 6 | AM9: 1 | AN9: 28 | AO9: CIAS | AP9: Fitopatologia molecular | AQ9: COL0086179 | AR9: C | AS9: http://scienti.colciencias.gov.co:8080/gruplac/jsp/visualiza/visualizagr.jsp?nro=00000000007907 | AT9: BB118:BB120 | AU9: =ROW() -> 9 | AV9: =MINA(IF(AQ9=$BA$4:$BA$300,$BD$4:$BD$300)) -> 118 | AW9: =MAXA(IF(AQ9=$BA$4:$BA$300,$BD$4:$BD$300)) -> 120 | BA9: COL0062704 | BB9: Responsabilidad Social Empresarial | BC9: 4 | BD9: =ROW() -> 9 | BG9: COL0028918 | BH9: 1 | BL9: 15:12:00 | BM9: b
AA10: 5 | AB10: Facultad | AC10: Estudios a Distancia | AD10: DIS | AL10: 7 | AM10: 1 | AN10: 30 | AO10: CIAS | AP10: Estadística, Control y Optimización | AQ10: COL0136423 | AR10: C | AS10: http://scienti.colciencias.gov.co:8080/gruplac/jsp/visualiza/visualizagr.jsp?nro=00000000013845 | AT10: BB125:BB129 | AU10: =ROW() -> 10 | AV10: =MINA(IF(AQ10=$BA$4:$BA$300,$BD$4:$BD$300)) -> 125 | AW10: =MAXA(IF(AQ10=$BA$4:$BA$300,$BD$4:$BD$300)) -> 129 | BA10: COL0028687 | BB10: Fitoplasmas | BC10: 1 | BD10: =ROW() -> 10 | BG10: COL0031824 | BH10: 1 | BL10: 23:12:00 | BM10: b
AA11: 6 | AB11: Facultad | AC11: Ingeniería | AD11: ING | AL11: 8 | AM11: 1 | AN11: 32 | AO11: CIAS | AP11: Ictiología | AQ11: COL0038084 | AR11: C | AS11: http://scienti.colciencias.gov.co:8080/gruplac/jsp/visualiza/visualizagr.jsp?nro=00000000002068 | AT11: BB134:BB134 | AU11: =ROW() -> 11 | AV11: =MINA(IF(AQ11=$BA$4:$BA$300,$BD$4:$BD$300)) -> 134 | AW11: =MAXA(IF(AQ11=$BA$4:$BA$300,$BD$4:$BD$300)) -> 134 | BA11: COL0031959 | BB11: Análisis de redes de interacción planta-polinizador a partir de técnicas palinológicas | BC11: 1 | BD11: =ROW() -> 11 | BG11: COL0031959 | BH11: 1 | BL11: 06:20:00 | BM11: c
AA12: 7 | AB12: Facultad | AC12: Medicina y Ciencias de la Salud | AD12: MED | AL12: 9 | AM12: 1 | AN12: 41 | AO12: CIAS | AP12: Grupo de Investigación en Hidrobiología Aplicada (HIDROBIA) | AQ12: COL0048492 | AR12: D | AS12: http://scienti.colciencias.gov.co:8080/gruplac/jsp/visualiza/visualizagr.jsp?nro=00000000005664 | AT12: BB165:BB168 | AU12: =ROW() -> 12 | AV12: =MINA(IF(AQ12=$BA$4:$BA$300,$BD$4:$BD$300)) -> 165 | AW12: =MAXA(IF(AQ12=$BA$4:$BA$300,$BD$4:$BD$300)) -> 168 | BA12: COL0031959 | BB12: Cría de especies del género Bombus para su utilización como polinizadores en cultivos de la sabana Cundi-boyacense. | BC12: 2 | BD12: =ROW() -> 12 | BG12: COL0032278 | BH12: 1 | BL12: 12:30:00 | BM12: a
AA13: 8 | AB13: Facultad | AC13: Relaciones Internacionales, Estrategia y Seguridad | AD13: EES | AL13: 10 | AM13: 1 | AN13: 42 | AO13: CIAS | AP13: Agrobiología de especies vegetales promisorias de clima frío | AQ13: COL0077814 | AR13: C | AS13: http://scienti.colciencias.gov.co:8080/gruplac/jsp/visualiza/visualizagr.jsp?nro=00000000006560 | AT13: BB169:BB169 | AU13: =ROW() -> 13 | AV13: =MINA(IF(AQ13=$BA$4:$BA$300,$BD$4:$BD$300)) -> 169 | AW13: =MAXA(IF(AQ13=$BA$4:$BA$300,$BD$4:$BD$300)) -> 169 | BA13: COL0031959 | BB13: Diversidad, biología y taxonomia de polinizadores colombianos | BC13: 3 | BD13: =ROW() -> 13 | BG13: COL0033239 | BH13: 1
AA14: 1 | AB14: Programa | AC14: CIAS | AD14: Biología Aplicada | AE14: 2 | AL14: 11 | AM14: 1 | AN14: 43 | AO14: CIAS | AP14: Grupo Integrado de Investigaciones en Química y Biología (InQuiBio) | AQ14: COL0077707 | AR14: A1 | AS14: http://scienti.colciencias.gov.co:8080/gruplac/jsp/visualiza/visualizagr.jsp?nro=00000000008358 | AT14: BB170:BB178 | AU14: =ROW() -> 14 | AV14: =MINA(IF(AQ14=$BA$4:$BA$300,$BD$4:$BD$300)) -> 170 | AW14: =MAXA(IF(AQ14=$BA$4:$BA$300,$BD$4:$BD$300)) -> 178 | BA14: COL0031959 | BB14: Ecología de la polinización: estudios del uso sostenible de especies de abejas silvestres como polinizadores de hortalizas y frutales | BC14: 4 | BD14: =ROW() -> 14 | BG14: COL0036025 | BH14: 1
AA15: 2 | AB15: Programa | AC15: CIAS | AD15: Tecnología en Horticultura | AE15: 3 | AL15: 12 | AM15: 1 | AN15: 44 | AO15: CIAS | AP15: GRUPO DE INVESTIGACIÓN EN QUÍMICA AMBIENTAL Y TECNOLOGÍAS LIMPIAS - QUATELI | AQ15: COL0110436 | AR15: C | AS15: http://scienti.colciencias.gov.co:8080/gruplac/jsp/visualiza/visualizagr.jsp?nro=00000000011141 | AT15: BB179:BB184 | AU15: =ROW() -> 15 | AV15: =MINA(IF(AQ15=$BA$4:$BA$300,$BD$4:$BD$300)) -> 179 | AW15: =MAXA(IF(AQ15=$BA$4:$BA$300,$BD$4:$BD$300)) -> 184 | BA15: COL0031959 | BB15: Modelos biológicos y ecológicos de insectos benéficos | BC15: 5 | BD15: =ROW() -> 15 | BG15: COL0038084 | BH15: 1
AA16: 3 | AB16: Programa | AC16: CIAS | AD16: Maestría en Biología Aplicada | AE16: 33 | AL16: 13 | AM16: 1 | AN16: 56 | AO16: CIAS | AP16: ECMU (Evaluacion en Competencias y Matemáticas Universitarias) | AQ16: COL0110329 | AR16: C | AS16: http://scienti.colciencias.gov.co:8080/gruplac/jsp/visualiza/visualizagr.jsp?nro=00000000011130 | AT16: BB238:BB240 | AU16: =ROW() -> 16 | AV16: =MINA(IF(AQ16=$BA$4:$BA$300,$BD$4:$BD$300)) -> 238 | AW16: =MAXA(IF(AQ16=$BA$4:$BA$300,$BD$4:$BD$300)) -> 240 | BA16: COL0044859 | BB16: Multimedia Educativa | BC16: 1 | BD16: =ROW() -> 16 | BG16: COL0039321 | BH16: 1
AA17: 3 | AB17: Programa | AC17: CIAS | AD17: Departamento de Matemáticas | AE17: 34 | AL17: 14 | AM17: 1 | AN17: 58 | AO17: CIAS | AP17: Grupo de Docencia e Investigación en Física | AQ17: COL0138796 | AR17: C | AS17: http://scienti.colciencias.gov.co:8080/gruplac/jsp/visualiza/visualizagr.jsp?nro=00000000014082 | AT17: BB246:BB250 | AU17: =ROW() -> 17 | AV17: =MINA(IF(AQ17=$BA$4:$BA$300,$BD$4:$BD$300)) -> 246 | AW17: =MAXA(IF(AQ17=$BA$4:$BA$300,$BD$4:$BD$300)) -> 250 | BA17: COL0044859 | BB17: Sistemas Multimedia | BC17: 2 | BD17: =ROW() -> 17 | BG17: COL0045848 | BH17: 1
AA18: 3 | AB18: Programa | AC18: CIAS | AD18: Departamento de Física | AE18: 35 | AL18: 15 | AM18: 1 | AN18: 11 | AO18: DER | AP18: GRUPO DE DERECHO PÚBLICO | AQ18: COL0028918 | AR18: C | AS18: http://scienti.colciencias.gov.co:8080/gruplac/jsp/visualiza/visualizagr.jsp?nro=00000000001079 | AT18: BB32:BB41 | AU18: =ROW() -> 18 | AV18: =MINA(IF(AQ18=$BA$4:$BA$300,$BD$4:$BD$300)) -> 32 | AW18: =MAXA(IF(AQ18=$BA$4:$BA$300,$BD$4:$BD$300)) -> 41 | BA18: COL0044859 | BB18: Procesamiento digital de imágenes y Visión por computador | BC18: 3 | BD18: =ROW() -> 18 | BG18: COL0047566 | BH18: 1
AA19: 3 | AB19: Programa | AC19: CIAS | AD19: Departamento de Química | AE19: 36 | AL19: 16 | AM19: 1 | AN19: 47 | AO19: DER | AP19: Grupo de Derecho Privado | AQ19: COL0128047 | AR19: D | AS19: http://scienti.colciencias.gov.co:8080/gruplac/jsp/visualiza/visualizagr.jsp?nro=00000000012964 | AT19: BB197:BB198 | AU19: =ROW() -> 19 | AV19: =MINA(IF(AQ19=$BA$4:$BA$300,$BD$4:$BD$300)) -> 197 | AW19: =MAXA(IF(AQ19=$BA$4:$BA$300,$BD$4:$BD$300)) -> 198 | BA19: COL0044859 | BB19: Visualización y Computación Gráfica | BC19: 4 | BD19: =ROW() -> 19 | BG19: COL0047762 | BH19: 1
AA20: 3 | AB20: Programa | AC20: CIAS | AD20: Doctorado en Ciencias Aplicadas | AE20: 33 | AL20: 17 | AM20: 1 | AN20: 68 | AO20: DER | AP20: GRUPO DE INVESTIGACIÓN EN POLÍTICAS PUBLICAS-GIPP | AQ20: COL0142449 | AR20: NR | AS20: http://scienti.colciencias.gov.co:8080/gruplac/jsp/visualiza/visualizagr.jsp?nro=00000000014449 | AT20: BB278:BB284 | AU20: =ROW() -> 20 | AV20: =MINA(IF(AQ20=$BA$4:$BA$300,$BD$4:$BD$300)) -> 278 | AW20: =MAXA(IF(AQ20=$BA$4:$BA$300,$BD$4:$BD$300)) -> 284 | BA20: COL0047762 | BB20: Desarrollo de modelos de ingeniería de tejido humano | BC20: 1 | BD20: =ROW() -> 20 | BG20: COL0049659 | BH20: 1
AA21: 4 | AB21: Programa | AC21: DER | AD21: Derecho | AE21: 16 | AL21: 18 | AM21: 1 | AN21: 2 | AO21: DIS | AP21: PROPPIO: Procesos organizacionales, programaticos y políticos para la promoción del desarrollo | AQ21: COL0062704 | AR21: C | AS21: http://scienti.colciencias.gov.co:8080/gruplac/jsp/visualiza/visualizagr.jsp?nro=00000000006477 | AT21: BB6:BB9 | AU21: =ROW() -> 21 | AV21: =MINA(IF(AQ21=$BA$4:$BA$300,$BD$4:$BD$300)) -> 6 | AW21: =MAXA(IF(AQ21=$BA$4:$BA$300,$BD$4:$BD$300)) -> 9 | BA21: COL0047762 | BB21: Metabolismo Oseo - Bone Metabolism | BC21: 2 | BD21: =ROW() -> 21 | BG21: COL0049999 | BH21: 1
AA22: 5 | AB22: Programa | AC22: DER | AD22: Maestría en Derecho Procesal Penal | AE22: 47 | AL22: 19 | AM22: 1 | AN22: 8 | AO22: DIS | AP22: INCONDIS | AQ22: COL0127649 | AR22: D | AS22: http://scienti.colciencias.gov.co:8080/gruplac/jsp/visualiza/visualizagr.jsp?nro=00000000012918 | AT22: BB24:BB24 | AU22: =ROW() -> 22 | AV22: =MINA(IF(AQ22=$BA$4:$BA$300,$BD$4:$BD$300)) -> 24 | AW22: =MAXA(IF(AQ22=$BA$4:$BA$300,$BD$4:$BD$300)) -> 24 | BA22: COL0126015 | BB22: INMUNODERMATOLOGIA | BC22: 1 | BD22: =ROW() -> 22 | BG22: COL0050294 | BH22: 1
AA23: 6 | AB23: Programa | AC23: DER | AD23: Maestría en Derecho Administrativo | AE23: 48 | AL23: 20 | AM23: 1 | AN23: 20 | AO23: DIS | AP23: "PYDES" Pedagogía y didáctica en la educación superior | AQ23: COL0018448 | AR23: B | AS23: http://scienti.colciencias.gov.co:8080/gruplac/jsp/visualiza/visualizagr.jsp?nro=00000000000929 | AT23: BB70:BB72 | AU23: =ROW() -> 23 | AV23: =MINA(IF(AQ23=$BA$4:$BA$300,$BD$4:$BD$300)) -> 70 | AW23: =MAXA(IF(AQ23=$BA$4:$BA$300,$BD$4:$BD$300)) -> 72 | BA23: COL0126015 | BB23: PSORIASIS | BC23: 2 | BD23: =ROW() -> 23 | BG23: COL0052163 | BH23: 1
AA24: 7 | AB24: Programa | AC24: DER | AD24: Maestría en Instituciones Jurídicas de la Fuerza Pública | AE24: 49 | AL24: 21 | AM24: 1 | AN24: 22 | AO24: DIS | AP24: Medios, Mediaciones y Procesos en Educación a Distancia | AQ24: COL0067504 | AR24: C | AS24: http://scienti.colciencias.gov.co:8080/gruplac/jsp/visualiza/visualizagr.jsp?nro=00000000004308 | AT24: BB79:BB84 | AU24: =ROW() -> 24 | AV24: =MINA(IF(AQ24=$BA$4:$BA$300,$BD$4:$BD$300)) -> 79 | AW24: =MAXA(IF(AQ24=$BA$4:$BA$300,$BD$4:$BD$300)) -> 84 | BA24: COL0127649 | BB24: Línea en Contabilidad Integral | BC24: 1 | BD24: =ROW() -> 24 | BG24: COL0052181 | BH24: 1
AA25: 8 | AB25: Programa | AC25: DER | AD25: Especialización en Derecho Administrativo | AE25: 50 | AL25: 22 | AM25: 1 | AN25: 39 | AO25: DIS | AP25: PIREO "Procesos de Integración, Regionalización y Estructuras Organizacionales" | AQ25: COL0066229 | AR25: D | AS25: http://scienti.colciencias.gov.co:8080/gruplac/jsp/visualiza/visualizagr.jsp?nro=00000000004242 | AT25: BB157:BB159 | AU25: =ROW() -> 25 | AV25: =MINA(IF(AQ25=$BA$4:$BA$300,$BD$4:$BD$300)) -> 157 | AW25: =MAXA(IF(AQ25=$BA$4:$BA$300,$BD$4:$BD$300)) -> 159 | BA25: COL0015722 | BB25: BIOÉTICA. Biopolítica y biojurídica | BC25: 1 | BD25: =ROW() -> 25 | BG25: COL0065804 | BH25: 1
AA26: 9 | AB26: Programa | AC26: DER | AD26: Especialización en Procedimiento Penal, Constitucional y Justicia Militar | AE26: 51 | AL26: 23 | AM26: 1 | AN26: 61 | AO26: DIS | AP26: Modelos de simulación ICDIST | AQ26: COL0069296 | AR26: NR | AS26: http://scienti.colciencias.gov.co:8080/gruplac/jsp/visualiza/visualizagr.jsp?nro=00000000004423 | AT26: BB257:BB257 | AU26: =ROW() -> 26 | AV26: =MINA(IF(AQ26=$BA$4:$BA$300,$BD$4:$BD$300)) -> 257 | AW26: =MAXA(IF(AQ26=$BA$4:$BA$300,$BD$4:$BD$300)) -> 257 | BA26: COL0015722 | BB26: LIDERAZGO Y EDUCACIÓN | BC26: 2 | BD26: =ROW() -> 26 | BG26: COL0066229 | BH26: 1
AA27: 10 | AB27: Programa | AC27: DER | AD27: Especialización en Derecho Sancionatorio | AE27: 52 | AL27: 24 | AM27: 1 | AN27: 67 | AO27: DIS | AP27: INAMPE | AQ27: COL0142331 | AR27: NR | AS27: http://scienti.colciencias.gov.co:8080/gruplac/jsp/visualiza/visualizagr.jsp?nro=00000000014438 | AT27: BB275:BB277 | AU27: =ROW() -> 27 | AV27: =MINA(IF(AQ27=$BA$4:$BA$300,$BD$4:$BD$300)) -> 275 | AW27: =MAXA(IF(AQ27=$BA$4:$BA$300,$BD$4:$BD$300)) -> 277 | BA27: COL0005439 | BB27: MODELACIÓN NUMÉRICA | BC27: 1 | BD27: =ROW() -> 27 | BG27: COL0066669 | BH27: 1
AA28: 11 | AB28: Programa | AC28: DER | AD28: Especialización en Derechos Humanos y Sistemas de Protección | AE28: 53 | AL28: 25 | AM28: 1 | AN28: 13 | AO28: ECO | AP28: Grupo de Estudios en Ciencias Económicas - CIE | AQ28: COL0050294 | AR28: C | AS28: http://scienti.colciencias.gov.co:8080/gruplac/jsp/visualiza/visualizagr.jsp?nro=00000000003322 | AT28: BB47:BB49 | AU28: =ROW() -> 28 | AV28: =MINA(IF(AQ28=$BA$4:$BA$300,$BD$4:$BD$300)) -> 47 | AW28: =MAXA(IF(AQ28=$BA$4:$BA$300,$BD$4:$BD$300)) -> 49 | BA28: COL0005439 | BB28: ORDENACIÓN DEL TERRITORIO | BC28: 2 | BD28: =ROW() -> 28 | BG28: COL0066768 | BH28: 1
AA29: 12 | AB29: Programa | AC29: DIS | AD29: Administración de Empresas | AE29: 17 | AL29: 26 | AM29: 1 | AN29: 17 | AO29: ECO | AP29: Grupo de Estudios Macroeconómicos | AQ29: COL0027367 | AR29: C | AS29: http://scienti.colciencias.gov.co:8080/gruplac/jsp/visualiza/visualizagr.jsp?nro=00000000000855 | AT29: BB62:BB64 | AU29: =ROW() -> 29 | AV29: =MINA(IF(AQ29=$BA$4:$BA$300,$BD$4:$BD$300)) -> 62 | AW29: =MAXA(IF(AQ29=$BA$4:$BA$300,$BD$4:$BD$300)) -> 64 | BA29: COL0005439 | BB29: PAVIMENTOS | BC29: 3 | BD29: =ROW() -> 29 | BG29: COL0067504 | BH29: 1
AA30: 12 | AB30: Programa | AC30: DIS | AD30: Administración de seguridad y Salud Ocupacional | AE30: X | AL30: 27 | AM30: 1 | AN30: 40 | AO30: ECO | AP30: Grupo de estudios contemporáneos en contabilidad, gestión y organizaciones | AQ30: COL0028767 | AR30: B | AS30: http://scienti.colciencias.gov.co:8080/gruplac/jsp/visualiza/visualizagr.jsp?nro=00000000001069 | AT30: BB160:BB164 | AU30: =ROW() -> 30 | AV30: =MINA(IF(AQ30=$BA$4:$BA$300,$BD$4:$BD$300)) -> 160 | AW30: =MAXA(IF(AQ30=$BA$4:$BA$300,$BD$4:$BD$300)) -> 164 | BA30: COL0005439 | BB30: SUELOS | BC30: 4 | BD30: =ROW() -> 30 | BG30: COL0068762 | BH30: 1
AA31: 13 | AB31: Programa | AC31: DIS | AD31: Contaduría Pública | AE31: 18 | AL31: 28 | AM31: 1 | AN31: 64 | AO31: ECO | AP31: GECS (Grupo de Investigación en Contabilidad y Sociedad) | AQ31: COL0117722 | AR31: NR | AS31: http://scienti.colciencias.gov.co:8080/gruplac/jsp/visualiza/visualizagr.jsp?nro=00000000011887 | AT31: BB265:BB266 | AU31: =ROW() -> 31 | AV31: =MINA(IF(AQ31=$BA$4:$BA$300,$BD$4:$BD$300)) -> 265 | AW31: =MAXA(IF(AQ31=$BA$4:$BA$300,$BD$4:$BD$300)) -> 266 | BA31: COL0005439 | BB31: TRANSPORTES | BC31: 5 | BD31: =ROW() -> 31 | BG31: COL0069296 | BH31: 1
AA32: 14 | AB32: Programa | AC32: DIS | AD32: Ingeniería Civil | AE32: 19 | AL32: 29 | AM32: 1 | AN32: 21 | AO32: EES | AP32: Estudios Internacionales y Políticos | AQ32: COL0066768 | AR32: B | AS32: http://scienti.colciencias.gov.co:8080/gruplac/jsp/visualiza/visualizagr.jsp?nro=00000000004270 | AT32: BB73:BB78 | AU32: =ROW() -> 32 | AV32: =MINA(IF(AQ32=$BA$4:$BA$300,$BD$4:$BD$300)) -> 73 | AW32: =MAXA(IF(AQ32=$BA$4:$BA$300,$BD$4:$BD$300)) -> 78 | BA32: COL0028918 | BB32: Derecho Constitucional | BC32: 1 | BD32: =ROW() -> 32 | BG32: COL0048492 | BH32: 1
AA33: 15 | AB33: Programa | AC33: DIS | AD33: Ingeniería Industrial | AE33: 20 | AL33: 30 | AM33: 1 | AN33: 53 | AO33: EES | AP33: Sociedad, Estrategia y Seguridad | AQ33: COL0066669 | AR33: C | AS33: http://scienti.colciencias.gov.co:8080/gruplac/jsp/visualiza/visualizagr.jsp?nro=00000000004263 | AT33: BB220:BB223 | AU33: =ROW() -> 33 | AV33: =MINA(IF(AQ33=$BA$4:$BA$300,$BD$4:$BD$300)) -> 220 | AW33: =MAXA(IF(AQ33=$BA$4:$BA$300,$BD$4:$BD$300)) -> 223 | BA33: COL0028918 | BB33: Derecho Historia y Filosofía | BC33: 2 | BD33: =ROW() -> 33 | BG33: COL0050982 | BH33: 1
AA34: 16 | AB34: Programa | AC34: DIS | AD34: Ingeniería Informática | AE34: 21 | AL34: 31 | AM34: 1 | AN34: 9 | AO34: HUM | AP34: LIDERAZGO | AQ34: COL0015722 | AR34: A | AS34: http://scienti.colciencias.gov.co:8080/gruplac/jsp/visualiza/visualizagr.jsp?nro=00000000000744 | AT34: BB25:BB26 | AU34: =ROW() -> 34 | AV34: =MINA(IF(AQ34=$BA$4:$BA$300,$BD$4:$BD$300)) -> 25 | AW34: =MAXA(IF(AQ34=$BA$4:$BA$300,$BD$4:$BD$300)) -> 26 | BA34: COL0028918 | BB34: Derecho Militar | BC34: 3 | BD34: =ROW() -> 34 | BG34: COL0062704 | BH34: 1
AA35: 16 | AB35: Programa | AC35: DIS | AD35: Relaciones Internacionales y Estudios Políticos | AE35: X | AL35: 32 | AM35: 1 | AN35: 23 | AO35: HUM | AP35: HUMANITAS | AQ35: COL0101099 | AR35: C | AS35: http://scienti.colciencias.gov.co:8080/gruplac/jsp/visualiza/visualizagr.jsp?nro=00000000010165 | AT35: BB85:BB88 | AU35: =ROW() -> 35 | AV35: =MINA(IF(AQ35=$BA$4:$BA$300,$BD$4:$BD$300)) -> 85 | AW35: =MAXA(IF(AQ35=$BA$4:$BA$300,$BD$4:$BD$300)) -> 88 | BA35: COL0028918 | BB35: Derecho Penal | BC35: 4 | BD35: =ROW() -> 35 | BG35: COL0077814 | BH35: 1
AA36: 17 | AB36: Programa | AC36: DIS | AD36: Especialización en Alta Gerencia | AE36: 54 | AL36: 33 | AM36: =COUNTIF($AN$4:$AN$78,AL36) -> 1 | AN36: 38 | AO36: HUM | AP36: Cultura y Desarrollo Humano | AQ36: COL0002896 | AR36: D | AS36: http://scienti.colciencias.gov.co:8080/gruplac/jsp/visualiza/visualizagr.jsp?nro=00000000000740 | AT36: BB154:BB156 | AU36: =ROW() -> 36 | AV36: =MINA(IF(AQ36=$BA$4:$BA$300,$BD$4:$BD$300)) -> 154 | AW36: =MAXA(IF(AQ36=$BA$4:$BA$300,$BD$4:$BD$300)) -> 156 | BA36: COL0028918 | BB36: Derecho y Estado | BC36: 5 | BD36: =ROW() -> 36 | BG36: COL0067371 | BH36: =COUNTIF($AQ$4:$AQ$78,BG36) -> 1
AA37: 18 | AB37: Programa | AC37: ECO | AD37: Administración de Empresas | AE37: X
AA38: 18 | AB38: Programa | AC38: ECO | AD38: Contaduría Pública | AE38: X
AA39: 18 | AB39: Programa | AC39: ECO | AD39: Economía | AE39: X
AA40: 18 | AB40: Programa | AC40: ECO | AD40: Maestría en Gestión de Organizaciones | AE40: 24 | AL40: 34 | AM40: 1 | AN40: 50 | AO40: HUM | AP40: BioethicsGroup | AQ40: COL0031824 | AR40: B | AS40: http://scienti.colciencias.gov.co:8080/gruplac/jsp/visualiza/visualizagr.jsp?nro=00000000001353 | AT40: BB208:BB211 | AU40: =ROW() -> 40 | AV40: =MINA(IF(AQ40=$BA$4:$BA$300,$BD$4:$BD$300)) -> 208 | AW40: =MAXA(IF(AQ40=$BA$4:$BA$300,$BD$4:$BD$300)) -> 211 | BA40: COL0028918 | BB40: Derecho, Educación y Sociedad | BC40: 6 | BD40: =ROW() -> 40 | BG40: COL0086179 | BH40: 1
AA41: 19 | AB41: Programa | AC41: ECO | AD41: Especialización en Alta Gerencia | AE41: 25 | AL41: 35 | AM41: 1 | AN41: 5 | AO41: ING | AP41: Grupo de Investigación en Multimedia -GIM- | AQ41: COL0044859 | AR41: C | AS41: http://scienti.colciencias.gov.co:8080/gruplac/jsp/visualiza/visualizagr.jsp?nro=00000000002706 | AT41: BB16:BB19 | AU41: =ROW() -> 41 | AV41: =MINA(IF(AQ41=$BA$4:$BA$300,$BD$4:$BD$300)) -> 16 | AW41: =MAXA(IF(AQ41=$BA$4:$BA$300,$BD$4:$BD$300)) -> 19 | BA41: COL0028918 | BB41: Derechos Humanos y Derecho Internacional Humanitario | BC41: 7 | BD41: =ROW() -> 41 | BG41: COL0077707 | BH41: 1
AA42: 20 | AB42: Programa | AC42: ECO | AD42: Especialización en Administración Aeronáutica y Aeroespacial | AE42: 26 | AL42: 36 | AM42: 1 | AN42: 10 | AO42: ING | AP42: GEOTECNIA | AQ42: COL0005439 | AR42: C | AS42: http://scienti.colciencias.gov.co:8080/gruplac/jsp/visualiza/visualizagr.jsp?nro=00000000000739 | AT42: BB27:BB31 | AU42: =ROW() -> 42 | AV42: =MINA(IF(AQ42=$BA$4:$BA$300,$BD$4:$BD$300)) -> 27 | AW42: =MAXA(IF(AQ42=$BA$4:$BA$300,$BD$4:$BD$300)) -> 31 | BA42: COL0039321 | BB42: Analisis de Matrices | BC42: 1 | BD42: =ROW() -> 42 | BG42: COL0028687 | BH42: 1
AA43: 21 | AB43: Programa | AC43: ECO | AD43: Especialización en Control Interno | AE43: 27 | AL43: 37 | AM43: 1 | AN43: 14 | AO43: ING | AP43: TIGUM: Grupo de Investigacion en Telemedicina Universidad Militar | AQ43: COL0052181 | AR43: C | AS43: http://scienti.colciencias.gov.co:8080/gruplac/jsp/visualiza/visualizagr.jsp?nro=00000000003508 | AT43: BB50:BB53 | AU43: =ROW() -> 43 | AV43: =MINA(IF(AQ43=$BA$4:$BA$300,$BD$4:$BD$300)) -> 50 | AW43: =MAXA(IF(AQ43=$BA$4:$BA$300,$BD$4:$BD$300)) -> 53 | BA43: COL0039321 | BB43: Filosofía de la Ciencia: Filosofía de la Física | BC43: 2 | BD43: =ROW() -> 43 | BG43: COL0096032 | BH43: 1
AA44: 22 | AB44: Programa | AC44: ECO | AD44: Especialización en Gestión de Desarrollo Administrativo | AE44: 28 | AL44: 38 | AM44: 1 | AN44: 16 | AO44: ING | AP44: VOLTA - GMCDP | AQ44: COL0065804 | AR44: A1 | AS44: http://scienti.colciencias.gov.co:8080/gruplac/jsp/visualiza/visualizagr.jsp?nro=00000000004193 | AT44: BB59:BB61 | AU44: =ROW() -> 44 | AV44: =MINA(IF(AQ44=$BA$4:$BA$300,$BD$4:$BD$300)) -> 59 | AW44: =MAXA(IF(AQ44=$BA$4:$BA$300,$BD$4:$BD$300)) -> 61 | BA44: COL0039321 | BB44: LEYES DE CONSERVACION HIPERBOLICA | BC44: 3 | BD44: =ROW() -> 44 | BG44: COL0107771 | BH44: 1
AA45: 23 | AB45: Programa | AC45: ECO | AD45: Especialización en Gerencia en Comercio Internacional | AE45: 29 | AL45: 39 | AM45: 1 | AN45: 27 | AO45: ING | AP45: PRODUCCION, INNOVACION Y TECNOLOGIA | AQ45: COL0049999 | AR45: B | AS45: http://scienti.colciencias.gov.co:8080/gruplac/jsp/visualiza/visualizagr.jsp?nro=00000000003290 | AT45: BB112:BB117 | AU45: =ROW() -> 45 | AV45: =MINA(IF(AQ45=$BA$4:$BA$300,$BD$4:$BD$300)) -> 112 | AW45: =MAXA(IF(AQ45=$BA$4:$BA$300,$BD$4:$BD$300)) -> 117 | BA45: COL0039321 | BB45: Matematicas aplicadas | BC45: 4 | BD45: =ROW() -> 45 | BG45: COL0110329 | BH45: 1
AA46: 24 | AB46: Programa | AC46: ECO | AD46: Especialización en Finanzas y Administración Pública | AE46: 30 | AL46: 40 | AM46: 1 | AN46: 29 | AO46: ING | AP46: GIDAM | AQ46: COL0116636 | AR46: C | AS46: http://scienti.colciencias.gov.co:8080/gruplac/jsp/visualiza/visualizagr.jsp?nro=00000000011773 | AT46: BB121:BB124 | AU46: =ROW() -> 46 | AV46: =MINA(IF(AQ46=$BA$4:$BA$300,$BD$4:$BD$300)) -> 121 | AW46: =MAXA(IF(AQ46=$BA$4:$BA$300,$BD$4:$BD$300)) -> 124 | BA46: COL0039321 | BB46: Solución numérica de ecuaciones diferenciales parciales | BC46: 5 | BD46: =ROW() -> 46 | BG46: COL0110436 | BH46: 0
AA47: 25 | AB47: Programa | AC47: ECO | AD47: Especialización en Mercadeo de Servicios | AE47: 31 | AL47: 41 | AM47: 1 | AN47: 31 | AO47: ING | AP47: DAVINCI | AQ47: COL0036025 | AR47: B | AS47: http://scienti.colciencias.gov.co:8080/gruplac/jsp/visualiza/visualizagr.jsp?nro=00000000001843 | AT47: BB130:BB133 | AU47: =ROW() -> 47 | AV47: =MINA(IF(AQ47=$BA$4:$BA$300,$BD$4:$BD$300)) -> 130 | AW47: =MAXA(IF(AQ47=$BA$4:$BA$300,$BD$4:$BD$300)) -> 133 | BA47: COL0050294 | BB47: Economía de la defensa y del conflicto | BC47: 1 | BD47: =ROW() -> 47 | BG47: COL0114201 | BH47: 1
AA48: 26 | AB48: Programa | AC48: ECO | AD48: Especialización en Revisoría Fiscal y Auditoría Internacional | AE48: 32 | AL48: 42 | AM48: 1 | AN48: 33 | AO48: ING | AP48: Estructuras y sísmica | AQ48: COL0016999 | AR48: C | AS48: http://scienti.colciencias.gov.co:8080/gruplac/jsp/visualiza/visualizagr.jsp?nro=00000000000737 | AT48: BB135:BB138 | AU48: =ROW() -> 48 | AV48: =MINA(IF(AQ48=$BA$4:$BA$300,$BD$4:$BD$300)) -> 135 | AW48: =MAXA(IF(AQ48=$BA$4:$BA$300,$BD$4:$BD$300)) -> 138 | BA48: COL0050294 | BB48: Gestión Ambiental | BC48: 2 | BD48: =ROW() -> 48 | BG48: COL0116439 | BH48: 1
AA49: 27 | AB49: Programa | AC49: EES | AD49: Relaciones Internacionales y Estudios Políticos | AE49: 12 | AL49: 43 | AM49: 1 | AN49: 34 | AO49: ING | AP49: INGENIERÍA, GEOMÁTICA Y EDUCACIÓN (IGE) | AQ49: COL0047566 | AR49: C | AS49: http://scienti.colciencias.gov.co:8080/gruplac/jsp/visualiza/visualizagr.jsp?nro=00000000003044 | AT49: BB139:BB144 | AU49: =ROW() -> 49 | AV49: =MINA(IF(AQ49=$BA$4:$BA$300,$BD$4:$BD$300)) -> 139 | AW49: =MAXA(IF(AQ49=$BA$4:$BA$300,$BD$4:$BD$300)) -> 144 | BA49: COL0050294 | BB49: Política Económica | BC49: 3 | BD49: =ROW() -> 49 | BG49: COL0116538 | BH49: 1
AA50: 28 | AB50: Programa | AC50: EES | AD50: Administración de la Seguridad y Salud Ocupacional | AE50: 13 | AL50: 44 | AM50: 1 | AN50: 37 | AO50: ING | AP50: ACCEDER | AQ50: COL0036749 | AR50: C | AS50: http://scienti.colciencias.gov.co:8080/gruplac/jsp/visualiza/visualizagr.jsp?nro=00000000012996 | AT50: BB152:BB153 | AU50: =ROW() -> 50 | AV50: =MINA(IF(AQ50=$BA$4:$BA$300,$BD$4:$BD$300)) -> 152 | AW50: =MAXA(IF(AQ50=$BA$4:$BA$300,$BD$4:$BD$300)) -> 153 | BA50: COL0052181 | BB50: Gestión hospitalaria | BC50: 1 | BD50: =ROW() -> 50 | BG50: COL0116636 | BH50: 1
AA51: 29 | AB51: Programa | AC51: EES | AD51: Relaciones Internacionales y Estudios Políticos | AE51: 22 | AL51: 45 | AM51: 1 | AN51: 49 | AO51: ING | AP51: Tratamiento de agua | AQ51: COL0026486 | AR51: C | AS51: http://scienti.colciencias.gov.co:8080/gruplac/jsp/visualiza/visualizagr.jsp?nro=00000000000767 | AT51: BB205:BB207 | AU51: =ROW() -> 51 | AV51: =MINA(IF(AQ51=$BA$4:$BA$300,$BD$4:$BD$300)) -> 205 | AW51: =MAXA(IF(AQ51=$BA$4:$BA$300,$BD$4:$BD$300)) -> 207 | BA51: COL0052181 | BB51: Procesamiento de seńales | BC51: 2 | BD51: =ROW() -> 51 | BG51: COL0117052 | BH51: 1
AA52: 30 | AB52: Programa | AC52: EES | AD52: Administración de la Seguridad y Salud Ocupacional | AE52: 23 | AL52: 46 | AM52: 1 | AN52: 52 | AO52: ING | AP52: GISSIC: Grupo de Investigacion en Seguridad y Sistemas de Comunicaciones | AQ52: COL0052163 | AR52: C | AS52: http://scienti.colciencias.gov.co:8080/gruplac/jsp/visualiza/visualizagr.jsp?nro=00000000003506 | AT52: BB215:BB219 | AU52: =ROW() -> 52 | AV52: =MINA(IF(AQ52=$BA$4:$BA$300,$BD$4:$BD$300)) -> 215 | AW52: =MAXA(IF(AQ52=$BA$4:$BA$300,$BD$4:$BD$300)) -> 219 | BA52: COL0052181 | BB52: Tele-cardiología | BC52: 3 | BD52: =ROW() -> 52 | BG52: COL0117722 | BH52: 1
AA53: 31 | AB53: Programa | AC53: EES | AD53: Maestría en Relaciones y Negocios Internacionales | AE53: 44 | AL53: 47 | AM53: 1 | AN53: 54 | AO53: ING | AP53: GAV | AQ53: COL0068762 | AR53: B | AS53: http://scienti.colciencias.gov.co:8080/gruplac/jsp/visualiza/visualizagr.jsp?nro=00000000004391 | AT53: BB224:BB229 | AU53: =ROW() -> 53 | AV53: =MINA(IF(AQ53=$BA$4:$BA$300,$BD$4:$BD$300)) -> 224 | AW53: =MAXA(IF(AQ53=$BA$4:$BA$300,$BD$4:$BD$300)) -> 229 | BA53: COL0052181 | BB53: Telemetría | BC53: 4 | BD53: =ROW() -> 53 | BG53: COL0125107 | BH53: 1
AA54: 32 | AB54: Programa | AC54: EES | AD54: Especialización en Administración de la Seguridad | AE54: 45 | AL54: 48 | AM54: 1 | AN54: 57 | AO54: ING | AP54: Energia alternativa, Centro Multidisciplinario de Investigación | AQ54: COL0117052 | AR54: C | AS54: http://scienti.colciencias.gov.co:8080/gruplac/jsp/visualiza/visualizagr.jsp?nro=00000000011817 | AT54: BB241:BB245 | AU54: =ROW() -> 54 | AV54: =MINA(IF(AQ54=$BA$4:$BA$300,$BD$4:$BD$300)) -> 241 | AW54: =MAXA(IF(AQ54=$BA$4:$BA$300,$BD$4:$BD$300)) -> 245 | BA54: COL0107771 | BB54: Calidad de Vida de las enfermedades respiratorias en la nińez | BC54: 1 | BD54: =ROW() -> 54 | BG54: COL0125134 | BH54: 1
AA55: 33 | AB55: Programa | AC55: EES | AD55: Especialización en Alta Gerencia de la Seguridad y Defensa | AE55: 46 | AL55: 49 | AM55: 1 | AN55: 60 | AO55: ING | AP55: GI-iTEC - Grupo de Investigación e innovación Tecnológica en Electrónica y Comunicaciones | AQ55: COL0143731 | AR55: D | AS55: http://scienti.colciencias.gov.co:8080/gruplac/jsp/visualiza/visualizagr.jsp?nro=00000000014576 | AT55: BB254:BB256 | AU55: =ROW() -> 55 | AV55: =MINA(IF(AQ55=$BA$4:$BA$300,$BD$4:$BD$300)) -> 254 | AW55: =MAXA(IF(AQ55=$BA$4:$BA$300,$BD$4:$BD$300)) -> 256 | BA55: COL0107771 | BB55: Enfermedad bronquial obstructiva recurrente en nińos (Asma, sibilancias inducidas por virus, sibilancias recurrentes, sibilancias persistentes de múltiples desencadenantes) | BC55: 2 | BD55: =ROW() -> 55 | BG55: COL0126015 | BH55: 1
AA56: 34 | AB56: Programa | AC56: HUM | AD56: Especialización en Docencia Universitaria | AE56: 55 | AL56: 50 | AM56: 1 | AN56: 66 | AO56: ING | AP56: LA TRAMOYA | AQ56: COL0126777 | AR56: NR | AS56: http://scienti.colciencias.gov.co:8080/gruplac/jsp/visualiza/visualizagr.jsp?nro=00000000012813 | AT56: BB272:BB274 | AU56: =ROW() -> 56 | AV56: =MINA(IF(AQ56=$BA$4:$BA$300,$BD$4:$BD$300)) -> 272 | AW56: =MAXA(IF(AQ56=$BA$4:$BA$300,$BD$4:$BD$300)) -> 274 | BA56: COL0107771 | BB56: Enfermedad pulmonar obstructiva crónica del Recién Nacido | BC56: 3 | BD56: =ROW() -> 56 | BG56: COL0126777 | BH56: 1
AA57: 35 | AB57: Programa | AC57: HUM | AD57: Maestría en Educación | AE57: 55 | AL57: 51 | AM57: 1 | AN57: 70 | AO57: ING | AP57: GREST | AQ57: COL0151789 | AR57: NR | AS57: http://scienti.colciencias.gov.co:8080/gruplac/jsp/visualiza/visualizagr.jsp?nro=00000000015386 | AT57: BB287:BB293 | AU57: =ROW() -> 57 | AV57: =MINA(IF(AQ57=$BA$4:$BA$300,$BD$4:$BD$300)) -> 287 | AW57: =MAXA(IF(AQ57=$BA$4:$BA$300,$BD$4:$BD$300)) -> 293 | BA57: COL0107771 | BB57: Enfermedades infecciosas de la infancia (Rinosinusitis, Croup, Bronquiolitis, Neumonía, Tuberculosis, Infección por VIH con afectación pulmonar) | BC57: 4 | BD57: =ROW() -> 57 | BG57: COL0127649 | BH57: 1
AA58: 36 | AB58: Programa | AC58: ING | AD58: Ingeniería Ambiental | AE58: 4 | AL58: 52 | AM58: 1 | AN58: 1 | AO58: MED | AP58: CATCH | AQ58: COL0049659 | AR58: D | AS58: http://scienti.colciencias.gov.co:8080/gruplac/jsp/visualiza/visualizagr.jsp?nro=00000000003253 | AT58: BB4:BB5 | AU58: =ROW() -> 58 | AV58: =MINA(IF(AQ58=$BA$4:$BA$300,$BD$4:$BD$300)) -> 4 | AW58: =MAXA(IF(AQ58=$BA$4:$BA$300,$BD$4:$BD$300)) -> 5 | BA58: COL0107771 | BB58: Fármaco economía de las enfermedades respiratorias en la infancia | BC58: 5 | BD58: =ROW() -> 58 | BG58: COL0128047 | BH58: 1
AA59: 37 | AB59: Programa | AC59: ING | AD59: Ingeniería Biomédica | AE59: 5 | AL59: 53 | AM59: 1 | AN59: 6 | AO59: MED | AP59: BONE | AQ59: COL0047762 | AR59: C | AS59: http://scienti.colciencias.gov.co:8080/gruplac/jsp/visualiza/visualizagr.jsp?nro=00000000003064 | AT59: BB20:BB21 | AU59: =ROW() -> 59 | AV59: =MINA(IF(AQ59=$BA$4:$BA$300,$BD$4:$BD$300)) -> 20 | AW59: =MAXA(IF(AQ59=$BA$4:$BA$300,$BD$4:$BD$300)) -> 21 | BA59: COL0065804 | BB59: Desarrollos mecatronicos | BC59: 1 | BD59: =ROW() -> 59 | BG59: COL0036749 | BH59: 1
AA60: 38 | AB60: Programa | AC60: ING | AD60: Ingeniería Civil | AE60: 6 | AL60: 54 | AM60: 1 | AN60: 7 | AO60: MED | AP60: GRUPO DE PSORIASIS E INMUNODERMATOLOGIA | AQ60: COL0126015 | AR60: C | AS60: http://scienti.colciencias.gov.co:8080/gruplac/jsp/visualiza/visualizagr.jsp?nro=00000000012737 | AT60: BB22:BB23 | AU60: =ROW() -> 60 | AV60: =MINA(IF(AQ60=$BA$4:$BA$300,$BD$4:$BD$300)) -> 22 | AW60: =MAXA(IF(AQ60=$BA$4:$BA$300,$BD$4:$BD$300)) -> 23 | BA60: COL0065804 | BB60: Energías Renovables | BC60: 2 | BD60: =ROW() -> 60 | BG60: COL0129689 | BH60: 1
AA61: 39 | AB61: Programa | AC61: ING | AD61: Ingeniería Industrial | AE61: 7 | AL61: 55 | AM61: 1 | AN61: 15 | AO61: MED | AP61: Grupo para el estudio de enfermedades respiratorias en nińos. Respira | AQ61: COL0107771 | AR61: C | AS61: http://scienti.colciencias.gov.co:8080/gruplac/jsp/visualiza/visualizagr.jsp?nro=00000000010842 | AT61: BB54:BB58 | AU61: =ROW() -> 61 | AV61: =MINA(IF(AQ61=$BA$4:$BA$300,$BD$4:$BD$300)) -> 54 | AW61: =MAXA(IF(AQ61=$BA$4:$BA$300,$BD$4:$BD$300)) -> 58 | BA61: COL0065804 | BB61: Materiales y Procesos de Manufactura | BC61: 3 | BD61: =ROW() -> 61 | BG61: COL0138796 | BH61: 1
AA62: 40 | AB62: Programa | AC62: ING | AD62: Ingeniería en Mecatrónica | AE62: 8 | AL62: 56 | AM62: 1 | AN62: 19 | AO62: MED | AP62: Salud y Comportamiento | AQ62: COL0033239 | AR62: D | AS62: http://scienti.colciencias.gov.co:8080/gruplac/jsp/visualiza/visualizagr.jsp?nro=00000000001536 | AT62: BB67:BB69 | AU62: =ROW() -> 62 | AV62: =MINA(IF(AQ62=$BA$4:$BA$300,$BD$4:$BD$300)) -> 67 | AW62: =MAXA(IF(AQ62=$BA$4:$BA$300,$BD$4:$BD$300)) -> 69 | BA62: COL0027367 | BB62: Aprendizaje en Economía | BC62: 1 | BD62: =ROW() -> 62 | BG62: COL0142331 | BH62: 1
AA63: 41 | AB63: Programa | AC63: ING | AD63: Ingeniería en Multimedia | AE63: 9 | AL63: 57 | AM63: 1 | AN63: 24 | AO63: MED | AP63: GRUPO NEUROCIENCIAS HMC | AQ63: COL0138698 | AR63: C | AS63: http://scienti.colciencias.gov.co:8080/gruplac/jsp/visualiza/visualizagr.jsp?nro=00000000014072 | AT63: BB89:BB101 | AU63: =ROW() -> 63 | AV63: =MINA(IF(AQ63=$BA$4:$BA$300,$BD$4:$BD$300)) -> 89 | AW63: =MAXA(IF(AQ63=$BA$4:$BA$300,$BD$4:$BD$300)) -> 101 | BA63: COL0027367 | BB63: Demografía y Economía Laboral | BC63: 2 | BD63: =ROW() -> 63 | BG63: COL0142449 | BH63: 1
AA64: 42 | AB64: Programa | AC64: ING | AD64: Ingenieria en Telecomunicaciones | AE64: 10 | AL64: 58 | AM64: 1 | AN64: 25 | AO64: MED | AP64: Grupo de Investigacion en Dermatologia HMC | AQ64: COL0116439 | AR64: C | AS64: http://scienti.colciencias.gov.co:8080/gruplac/jsp/visualiza/visualizagr.jsp?nro=00000000011753 | AT64: BB102:BB106 | AU64: =ROW() -> 64 | AV64: =MINA(IF(AQ64=$BA$4:$BA$300,$BD$4:$BD$300)) -> 102 | AW64: =MAXA(IF(AQ64=$BA$4:$BA$300,$BD$4:$BD$300)) -> 106 | BA64: COL0027367 | BB64: Polětica Monetaria y Desarrollo Financiero | BC64: 3 | BD64: =ROW() -> 64 | BG64: COL0016999 | BH64: 1
AA65: 43 | AB65: Programa | AC65: ING | AD65: Tecnología en Electrónica y Comunicaciones | AE65: 11 | AL65: 59 | AM65: 1 | AN65: 35 | AO65: MED | AP65: Células Stem Adultas | AQ65: COL0050982 | AR65: C | AS65: http://scienti.colciencias.gov.co:8080/gruplac/jsp/visualiza/visualizagr.jsp?nro=00000000005735 | AT65: BB145:BB148 | AU65: =ROW() -> 65 | AV65: =MINA(IF(AQ65=$BA$4:$BA$300,$BD$4:$BD$300)) -> 145 | AW65: =MAXA(IF(AQ65=$BA$4:$BA$300,$BD$4:$BD$300)) -> 148 | BA65: COL0032278 | BB65: Biología y Ecología de plagas y enemigos naturales de cultivos de importancia económica | BC65: 1 | BD65: =ROW() -> 65 | BG65: COL0005439 | BH65: 1
AA66: 44 | AB66: Programa | AC66: ING | AD66: Maestría en Ingeniería Mecatrónica | AE66: 34 | AL66: 60 | AM66: 1 | AN66: 36 | AO66: MED | AP66: GRUPO DE SALUD ORAL Y CIRUGIA MAXILOFACIAL | AQ66: COL0129689 | AR66: D | AS66: http://scienti.colciencias.gov.co:8080/gruplac/jsp/visualiza/visualizagr.jsp?nro=00000000013172 | AT66: BB149:BB151 | AU66: =ROW() -> 66 | AV66: =MINA(IF(AQ66=$BA$4:$BA$300,$BD$4:$BD$300)) -> 149 | AW66: =MAXA(IF(AQ66=$BA$4:$BA$300,$BD$4:$BD$300)) -> 151 | BA66: COL0032278 | BB66: Generación de recomendaciones para el manejo integrado de plagas, mediante el diseńo de modelos de simulación de agroecosistemas | BC66: 2 | BD66: =ROW() -> 66 | BG66: COL0002896 | BH66: 1
AA67: 45 | AB67: Programa | AC67: ING | AD67: Maestría en Ingeniería Civil | AE67: 35 | AL67: 61 | AM67: 1 | AN67: 45 | AO67: MED | AP67: Kokhlias. | AQ67: COL0125134 | AR67: B | AS67: http://scienti.colciencias.gov.co:8080/gruplac/jsp/visualiza/visualizagr.jsp?nro=00000000012649 | AT67: BB185:BB191 | AU67: =ROW() -> 67 | AV67: =MINA(IF(AQ67=$BA$4:$BA$300,$BD$4:$BD$300)) -> 185 | AW67: =MAXA(IF(AQ67=$BA$4:$BA$300,$BD$4:$BD$300)) -> 191 | BA67: COL0033239 | BB67: Prevención de la enfermedad y promoción de la salud | BC67: 1 | BD67: =ROW() -> 67 | BG67: COL0013719 | BH67: 1
AA68: 46 | AB68: Programa | AC68: ING | AD68: Maestría en Logística Integral | AE68: 36 | AL68: 62 | AM68: 1 | AN68: 46 | AO68: MED | AP68: GRUPO DE REHABILITACION HOMIC-UMNG | AQ68: COL0120281 | AR68: C | AS68: http://scienti.colciencias.gov.co:8080/gruplac/jsp/visualiza/visualizagr.jsp?nro=00000000012152 | AT68: BB192:BB196 | AU68: =ROW() -> 68 | AV68: =MINA(IF(AQ68=$BA$4:$BA$300,$BD$4:$BD$300)) -> 192 | AW68: =MAXA(IF(AQ68=$BA$4:$BA$300,$BD$4:$BD$300)) -> 196 | BA68: COL0033239 | BB68: Salud Mental y Calidad de Vida | BC68: 2 | BD68: =ROW() -> 68 | BG68: COL0101099 | BH68: 1
AA69: 47 | AB69: Programa | AC69: ING | AD69: Maestría en Gerencia de Proyectos | AE69: 37 | AL69: 63 | AM69: 1 | AN69: 48 | AO69: MED | AP69: Grupo de Investigacion en Urologia HMC | AQ69: COL0116538 | AR69: D | AS69: http://scienti.colciencias.gov.co:8080/gruplac/jsp/visualiza/visualizagr.jsp?nro=00000000011763 | AT69: BB199:BB204 | AU69: =ROW() -> 69 | AV69: =MINA(IF(AQ69=$BA$4:$BA$300,$BD$4:$BD$300)) -> 199 | AW69: =MAXA(IF(AQ69=$BA$4:$BA$300,$BD$4:$BD$300)) -> 204 | BA69: COL0033239 | BB69: Salud Sexual y Reproductiva | BC69: 3 | BD69: =ROW() -> 69 | BG69: COL0044859 | BH69: 1
AA70: 48 | AB70: Programa | AC70: ING | AD70: Especialización en Geomática | AE70: 38 | AL70: 64 | AM70: 1 | AN70: 51 | AO70: MED | AP70: Epidemiología molecular de enfermedades endocrinas | AQ70: COL0045848 | AR70: C | AS70: http://scienti.colciencias.gov.co:8080/gruplac/jsp/visualiza/visualizagr.jsp?nro=00000000002874 | AT70: BB212:BB214 | AU70: =ROW() -> 70 | AV70: =MINA(IF(AQ70=$BA$4:$BA$300,$BD$4:$BD$300)) -> 212 | AW70: =MAXA(IF(AQ70=$BA$4:$BA$300,$BD$4:$BD$300)) -> 214 | BA70: COL0018448 | BB70: Ambiente Virtuales de Aprendizaje | BC70: 1 | BD70: =ROW() -> 70 | BG70: COL0149359 | BH70: 1
AA71: 49 | AB71: Programa | AC71: ING | AD71: Especialización en Gerencia de la Calidad | AE71: 39 | AL71: 65 | AM71: =COUNTIF($AN$4:$AN$78,AL71) -> 1 | AN71: 55 | AO71: MED | AP71: Insight | AQ71: COL0067371 | AR71: C | AS71: http://scienti.colciencias.gov.co:8080/gruplac/jsp/visualiza/visualizagr.jsp?nro=00000000006698 | AT71: BB230:BB237 | AU71: =ROW() -> 71 | AV71: =MINA(IF(AQ71=$BA$4:$BA$300,$BD$4:$BD$300)) -> 230 | AW71: =MAXA(IF(AQ71=$BA$4:$BA$300,$BD$4:$BD$300)) -> 237 | BA71: COL0018448 | BB71: Formación pedagógica para el posconflicto en Colombia | BC71: 2 | BD71: =ROW() -> 71 | BG71: COL0143731 | BH71: =COUNTIF($AQ$4:$AQ$78,BG71) -> 1
AA72: 50 | AB72: Programa | AC72: ING | AD72: Especialización en Gerencia en Logística Integral | AE72: 40 | AL72: 66 | AM72: 1 | AN72: 59 | AO72: MED | AP72: EDUMECIS | AQ72: COL0152463 | AR72: R | AS72: http://scienti.colciencias.gov.co:8080/gruplac/jsp/visualiza/visualizagr.jsp?nro=00000000015421 | AT72: =$AT$2&AV72&":"&$AT$2&AW72 -> BB251:BB253 | AU72: =ROW() -> 72 | AV72: =MINA(IF(AQ72=$BA$4:$BA$300,$BD$4:$BD$300)) -> 251 | AW72: =MAXA(IF(AQ72=$BA$4:$BA$300,$BD$4:$BD$300)) -> 253 | BA72: COL0018448 | BB72: Gestión del conocimiento y calidad de la educación superior | BC72: 3 | BD72: =ROW() -> 72 | BG72: COL0151789 | BH72: 0
AA73: 51 | AB73: Programa | AC73: ING | AD73: Especialización en Gerencia Integral de Proyectos | AE73: 41 | AL73: 67 | AM73: 1 | AN73: 62 | AO73: MED | AP73: BioGenEtica & BioDerecho | AQ73: COL0096032 | AR73: NR | AS73: http://scienti.colciencias.gov.co:8080/gruplac/jsp/visualiza/visualizagr.jsp?nro=00000000009651 | AT73: BB258:BB261 | AU73: =ROW() -> 73 | AV73: =MINA(IF(AQ73=$BA$4:$BA$300,$BD$4:$BD$300)) -> 258 | AW73: =MAXA(IF(AQ73=$BA$4:$BA$300,$BD$4:$BD$300)) -> 261 | BA73: COL0066768 | BB73: DERECHO DE LAS RELACIONES INTERNACIONALES | BC73: 1 | BD73: =ROW() -> 73 | BG73: COL0152472 | BH73: 1
AA74: 52 | AB74: Programa | AC74: ING | AD74: Especialización en Ingeniería de Pavimentos | AE74: 42 | AL74: 68 | AM74: 1 | AN74: 63 | AO74: MED | AP74: Grupo de Investigación en Farmacología, Toxicología y Terapéutica-UMNG | AQ74: COL0114201 | AR74: NR | AS74: http://scienti.colciencias.gov.co:8080/gruplac/jsp/visualiza/visualizagr.jsp?nro=00000000011524 | AT74: BB262:BB264 | AU74: =ROW() -> 74 | AV74: =MINA(IF(AQ74=$BA$4:$BA$300,$BD$4:$BD$300)) -> 262 | AW74: =MAXA(IF(AQ74=$BA$4:$BA$300,$BD$4:$BD$300)) -> 264 | BA74: COL0066768 | BB74: ECONOMIA Y NEGOCIOS INTERNACIONALES | BC74: 2 | BD74: =ROW() -> 74 | BG74: COL0152319 | BH74: 1
AA75: 53 | AB75: Programa | AC75: ING | AD75: Especialización en Planeación Ambiental y Manejo Integral de los Recursos Naturales | AE75: 43 | AL75: 69 | AM75: 1 | AN75: 65 | AO75: MED | AP75: MEDICINA REGENERATIVA HMC UMNG | AQ75: COL0125107 | AR75: NR | AS75: http://scienti.colciencias.gov.co:8080/gruplac/jsp/visualiza/visualizagr.jsp?nro=00000000012646 | AT75: BB267:BB271 | AU75: =ROW() -> 75 | AV75: =MINA(IF(AQ75=$BA$4:$BA$300,$BD$4:$BD$300)) -> 267 | AW75: =MAXA(IF(AQ75=$BA$4:$BA$300,$BD$4:$BD$300)) -> 271 | BA75: COL0066768 | BB75: ESTUDIOS POLÍTICOS | BC75: 3 | BD75: =ROW() -> 75 | BG75: COL0152463 | BH75: 1
AA76: 53 | AB76: Programa | AC76: ING | AD76: Doctorado en Ciencias Aplicadas | AE76: 43 | AL76: 70 | AM76: 1 | AN76: 69 | AO76: MED | AP76: GAFRED | AQ76: COL0149359 | AR76: NR | AS76: http://scienti.colciencias.gov.co:8080/gruplac/jsp/visualiza/visualizagr.jsp?nro=00000000015141 | AT76: BB285:BB286 | AU76: =ROW() -> 76 | AV76: =MINA(IF(AQ76=$BA$4:$BA$300,$BD$4:$BD$300)) -> 285 | AW76: =MAXA(IF(AQ76=$BA$4:$BA$300,$BD$4:$BD$300)) -> 286 | BA76: COL0066768 | BB76: ESTUDIOS REGIONALES | BC76: 4 | BD76: =ROW() -> 76 | BG76: COL0138698 | BH76: 1
AA77: 54 | AB77: Programa | AC77: MED | AD77: Medicina | AE77: 14 | AL77: 71 | AM77: 1 | AN77: 71 | AO77: MED | AP77: Grupo de inmunología Clínica Aplicada (GICA) | AQ77: COL0152472 | AR77: NR | AS77: http://scienti.colciencias.gov.co:8080/gruplac/jsp/visualiza/visualizagr.jsp?nro=00000000015414 | AT77: BB294:BB295 | AU77: =ROW() -> 77 | AV77: =MINA(IF(AQ77=$BA$4:$BA$300,$BD$4:$BD$300)) -> 294 | AW77: =MAXA(IF(AQ77=$BA$4:$BA$300,$BD$4:$BD$300)) -> 295 | BA77: COL0066768 | BB77: HISTORIA INTERNACIONAL | BC77: 5 | BD77: =ROW() -> 77 | BG77: COL0120281 | BH77: 1
AA78: 55 | AB78: Programa | AC78: MED | AD78: Tecnología en Atención Prehospitalaria | AE78: 15 | AL78: 72 | AM78: 1 | AN78: 72 | AO78: MED | AP78: Epidemiología y Salud Colectiva | AQ78: COL0152319 | AR78: NR | AS78: http://scienti.colciencias.gov.co:8080/gruplac/jsp/visualiza/visualizagr.jsp?nro=00000000015438 | AT78: BB296:BB300 | AU78: =ROW() -> 78 | AV78: =MINA(IF(AQ78=$BA$4:$BA$300,$BD$4:$BD$300)) -> 296 | AW78: =MAXA(IF(AQ78=$BA$4:$BA$300,$BD$4:$BD$300)) -> 300 | BA78: COL0066768 | BB78: RELACIONES INTERNACIONALES | BC78: 6 | BD78: =ROW() -> 78 | BG78: COL0136423 | BH78: 1
AA79: 1 | AB79: Tipo Proyecto | AC79: INV | AD79: Investigación Científica | AE79: =AC79 -> INV | BA79: COL0067504 | BB79: Gestión Tecnológica | BC79: 1 | BD79: =ROW() -> 79
AA80: 2 | AB80: Tipo Proyecto | AC80: IMP | AD80: Alto Impacto | AE80: IMP | BA80: COL0067504 | BB80: Gestión del conocimiento | BC80: 2 | BD80: =ROW() -> 80
AA81: 1 | AB81: Función | AC81: Investigador Principal | AD81: Investigador Principal o lider del proyecto | AE81: IP | BA81: COL0067504 | BB81: Los Estilos de enseńanza y Aprendizaje | BC81: 3 | BD81: =ROW() -> 81
AA82: 2 | AB82: Función | AC82: Coinvestigador | AD82: Investigador que apoya al lider del proyecto | AE82: CO | BA82: COL0067504 | BB82: Mercadeo Cuántico | BC82: 4 | BD82: =ROW() -> 82
AA83: 3 | AB83: Función | AC83: Asistente OPS | AD83: Asistente de Investigacion contratado OPS | AE83: OPS | BA83: COL0067504 | BB83: Mineria Web | BC83: 5 | BD83: =ROW() -> 83
AA84: 4 | AB84: Función | AC84: Joven Investigador | AD84: Joven investigador UMNG o Colciencias | AE84: JV | BA84: COL0067504 | BB84: Salud Pública, Bioética e Ingeniería | BC84: 6 | BD84: =ROW() -> 84
AA85: 5 | AB85: Función | AC85: Asistente Graduado | AD85: Asistente Graduado para proyectos de alto impacto | AE85: AG | BA85: COL0101099 | BB85: Educación y Sociedad | BC85: 1 | BD85: =ROW() -> 85
AA86: 6 | AB86: Función | AC86: Asesor | AD86: Asesor externo no vinculado a ninguna entidad | AE86: AR | BA86: COL0101099 | BB86: FILOSOFIA POLITICA Y REPONSABILIDAD SOCIAL | BC86: 2 | BD86: =ROW() -> 86
AA87: 7 | AB87: Función | AC87: Estudiante | AD87: Estudiante apoya el proyecto | AE87: EST | BA87: COL0101099 | BB87: HUMANIDADES, CULTURA Y UNIVERSIDAD | BC87: 3 | BD87: =ROW() -> 87
AA88: 1 | AB88: Vinculo | AC88: Doc. Carrera TC | AD88: Docente de Carrera Tiempo Completo | AE88: DTC | BA88: COL0101099 | BB88: Liderazgo y gestión en educación. | BC88: 4 | BD88: =ROW() -> 88
AA89: 2 | AB89: Vinculo | AC89: Doc. Carrera MT | AD89: Docente de Carrera Medio Tiempo | AE89: DMT | BA89: COL0138698 | BB89: BIOETICA | BC89: 1 | BD89: =ROW() -> 89
AA90: 3 | AB90: Vinculo | AC90: Doc. Ocasional | AD90: Docente de Ocasional | AE90: OCA | BA90: COL0138698 | BB90: CEREBROVASCULAR | BC90: 2 | BD90: =ROW() -> 90
AA91: 4 | AB91: Vinculo | AC91: OPS - Prestación Servicios | AD91: Asistente de Investigacion contratado OPS | AE91: OPS | BA91: COL0138698 | BB91: DEMENCIAS | BC91: 3 | BD91: =ROW() -> 91
AA92: 5 | AB92: Vinculo | AC92: Estudiante | AD92: Estudiante activo de pregrado o postgrado | AE92: EST | BA92: COL0138698 | BB92: DISTONIAS | BC92: 4 | BD92: =ROW() -> 92
AA93: 6 | AB93: Vinculo | AC93: Externo a la UMNG | AD93: Docentes Investigadores externos sin vinculo lavoral al U. | AE93: EXT | BA93: COL0138698 | BB93: ENFERMEDADES HUERFANAS | BC93: 5 | BD93: =ROW() -> 93
AA94: 1 | AB94: NBC | AC94: 11 | AD94: Programas y certificaciones básicas | AE94: 11 | BA94: COL0138698 | BB94: EPILEPSIA | BC94: 6 | BD94: =ROW() -> 94
AA95: 2 | AB95: NBC | AC95: 21 | AD95: Alfabetización y aritmética elemental | AE95: 21 | BA95: COL0138698 | BB95: ESCLEROSIS MULTIPLE | BC95: 7 | BD95: =ROW() -> 95
AA96: 3 | AB96: NBC | AC96: 31 | AD96: Competencias personales y desarrollo | AE96: 31 | BA96: COL0138698 | BB96: MOVIMIENTOS ANORMALES | BC96: 8 | BD96: =ROW() -> 96
AA97: 4 | AB97: NBC | AC97: 111 | AD97: Ciencias de la educación | AE97: 111 | BA97: COL0138698 | BB97: PARALISIS CEREBRAL | BC97: 9 | BD97: =ROW() -> 97
AA98: 5 | AB98: NBC | AC98: 112 | AD98: Formación para docentes de educación pre-primaría | AE98: 112 | BA98: COL0138698 | BB98: RETARDO MENTAL | BC98: 10 | BD98: =ROW() -> 98
AA99: 6 | AB99: NBC | AC99: 113 | AD99: Formación para docentes sin asignatura de especialización | AE99: 113 | BA99: COL0138698 | BB99: SALUD MENTAL | BC99: 11 | BD99: =ROW() -> 99
AA100: 7 | AB100: NBC | AC100: 114 | AD100: Formación para docentes con asignatura de especialización | AE100: 114 | BA100: COL0138698 | BB100: SUEŃO | BC100: 12 | BD100: =ROW() -> 100
AA101: 8 | AB101: NBC | AC101: 211 | AD101: Técnicas audiovisuales y producción para medios de comunicación | AE101: 211 | BA101: COL0138698 | BB101: TRASTORNOS DEL NEURODESARROLLO | BC101: 13 | BD101: =ROW() -> 101
AA102: 9 | AB102: NBC | AC102: 212 | AD102: Diseño industrial, de modas e interiores | AE102: 212 | BA102: COL0116439 | BB102: Cirugía Dermatologica | BC102: 1 | BD102: =ROW() -> 102
AA103: 10 | AB103: NBC | AC103: 213 | AD103: Bellas artes | AE103: 213 | BA103: COL0116439 | BB103: Dermatologia Pediatrica | BC103: 2 | BD103: =ROW() -> 103
AA104: 11 | AB104: NBC | AC104: 214 | AD104: Artesanías | AE104: 214 | BA104: COL0116439 | BB104: Fotobiologia y Fototerapia | BC104: 3 | BD104: =ROW() -> 104
AA105: 12 | AB105: NBC | AC105: 215 | AD105: Música y artes escénicas | AE105: 215 | BA105: COL0116439 | BB105: Leishmaniasis | BC105: 4 | BD105: =ROW() -> 105
AA106: 13 | AB106: NBC | AC106: 221 | AD106: Religión y Teología | AE106: 221 | BA106: COL0116439 | BB106: Psoriasis | BC106: 5 | BD106: =ROW() -> 106
AA107: 14 | AB107: NBC | AC107: 222 | AD107: Historia y arqueología | AE107: 222 | BA107: COL0013719 | BB107: Biología y Epidemiología de hongos patógenos humanos. | BC107: 1 | BD107: =ROW() -> 107
AA108: 15 | AB108: NBC | AC108: 223 | AD108: Filosofía y ética | AE108: 223 | BA108: COL0013719 | BB108: Diversidad, Ecología y Bioprospección | BC108: 2 | BD108: =ROW() -> 108
AA109: 16 | AB109: NBC | AC109: 231 | AD109: Adquisición del lenguaje | AE109: 231 | BA109: COL0013719 | BB109: Fitopatología | BC109: 3 | BD109: =ROW() -> 109
AA110: 17 | AB110: NBC | AC110: 232 | AD110: Literatura y lingüística | AE110: 232 | BA110: COL0013719 | BB110: Genómica y bioinformática | BC110: 4 | BD110: =ROW() -> 110
AA111: 18 | AB111: NBC | AC111: 311 | AD111: Economía | AE111: 311 | BA111: COL0013719 | BB111: Susceptibilidad a Antifungícos | BC111: 5 | BD111: =ROW() -> 111
AA112: 19 | AB112: NBC | AC112: 312 | AD112: Ciencias políticas y educación cívica | AE112: 312 | BA112: COL0049999 | BB112: Calidad y Gestión en la Educación | BC112: 1 | BD112: =ROW() -> 112
AA113: 20 | AB113: NBC | AC113: 313 | AD113: Psicología | AE113: 313 | BA113: COL0049999 | BB113: Gestión y Proyectos | BC113: 2 | BD113: =ROW() -> 113
AA114: 21 | AB114: NBC | AC114: 314 | AD114: Sociología y estudios culturales | AE114: 314 | BA114: COL0049999 | BB114: Innovación | BC114: 3 | BD114: =ROW() -> 114
AA115: 22 | AB115: NBC | AC115: 321 | AD115: Periodismo y reportajes | AE115: 321 | BA115: COL0049999 | BB115: Productividad | BC115: 4 | BD115: =ROW() -> 115
AA116: 23 | AB116: NBC | AC116: 322 | AD116: Bibliotecología, información y archivología | AE116: 322 | BA116: COL0049999 | BB116: Sostenibilidad y Medio Ambiente | BC116: 5 | BD116: =ROW() -> 116
AA117: 24 | AB117: NBC | AC117: 411 | AD117: Contabilidad e impuestos | AE117: 411 | BA117: COL0049999 | BB117: Tecnología | BC117: 6 | BD117: =ROW() -> 117
AA118: 25 | AB118: NBC | AC118: 412 | AD118: Gestión financiera, administración bancaria y seguros | AE118: 412 | BA118: COL0086179 | BB118: Búsqueda de marcadores genéticos y estudio de genes ligados a la resistencia a Fusarium en clavel. | BC118: 1 | BD118: =ROW() -> 118
AA119: 26 | AB119: NBC | AC119: 413 | AD119: Gestión y administración | AE119: 413 | BA119: COL0086179 | BB119: Estudio de la biología del mildeo velloso de la Rosa comercial. | BC119: 2 | BD119: =ROW() -> 119
AA120: 27 | AB120: NBC | AC120: 414 | AD120: Mercadotecnia y publicidad | AE120: 414 | BA120: COL0086179 | BB120: Producción de nuevas variedades de clavel resistentes a parasitos vasculares. | BC120: 3 | BD120: =ROW() -> 120
AA121: 28 | AB121: NBC | AC121: 415 | AD121: Secretariado y trabajo de oficina | AE121: 415 | BA121: COL0116636 | BB121: Desarrollo de software y hardware embebido | BC121: 1 | BD121: =ROW() -> 121
AA122: 29 | AB122: NBC | AC122: 416 | AD122: Ventas al por mayor y al por menor | AE122: 416 | BA122: COL0116636 | BB122: Procesamiento digital de seńales e imágenes | BC122: 2 | BD122: =ROW() -> 122
AA123: 30 | AB123: NBC | AC123: 417 | AD123: Competencias laborales | AE123: 417 | BA123: COL0116636 | BB123: Producción sostenible | BC123: 3 | BD123: =ROW() -> 123
AA124: 31 | AB124: NBC | AC124: 421 | AD124: Derecho | AE124: 421 | BA124: COL0116636 | BB124: Robótica | BC124: 4 | BD124: =ROW() -> 124
AA125: 32 | AB125: NBC | AC125: 511 | AD125: Biología | AE125: 511 | BA125: COL0136423 | BB125: Control óptimo estocástico | BC125: 1 | BD125: =ROW() -> 125
AA126: 33 | AB126: NBC | AC126: 512 | AD126: Bioquímica | AE126: 512 | BA126: COL0136423 | BB126: Estadística Multivariada paramétrica y no paramétrica. | BC126: 2 | BD126: =ROW() -> 126
AA127: 34 | AB127: NBC | AC127: 521 | AD127: Ciencias del medio ambiente | AE127: 521 | BA127: COL0136423 | BB127: Métodos estadísticos basados en grafos | BC127: 3 | BD127: =ROW() -> 127
AA128: 35 | AB128: NBC | AC128: 522 | AD128: Medio ambiente natural y vida silvestre | AE128: 522 | BA128: COL0136423 | BB128: Optimizacion Semidefinida | BC128: 4 | BD128: =ROW() -> 128
AA129: 36 | AB129: NBC | AC129: 531 | AD129: Química | AE129: 531 | BA129: COL0136423 | BB129: Optimización Numérica. Máquinas de Vectores de Soportes. | BC129: 5 | BD129: =ROW() -> 129
AA130: 37 | AB130: NBC | AC130: 532 | AD130: Ciencias de la tierra | AE130: 532 | BA130: COL0036025 | BB130: Biomecatronica | BC130: 1 | BD130: =ROW() -> 130
AA131: 38 | AB131: NBC | AC131: 533 | AD131: Física | AE131: 533 | BA131: COL0036025 | BB131: Optimización y Control de sistemas dinámicos | BC131: 2 | BD131: =ROW() -> 131
AA132: 39 | AB132: NBC | AC132: 541 | AD132: Matemáticas | AE132: 541 | BA132: COL0036025 | BB132: Robótica híbrida | BC132: 3 | BD132: =ROW() -> 132
AA133: 40 | AB133: NBC | AC133: 542 | AD133: Estadística | AE133: 542 | BA133: COL0036025 | BB133: Simulacion y Realidad Virtual | BC133: 4 | BD133: =ROW() -> 133
AA134: 41 | AB134: NBC | AC134: 611 | AD134: Uso de computadores | AE134: 611 | BA134: COL0038084 | BB134: Biologia basica y aplicada de peces | BC134: 1 | BD134: =ROW() -> 134
AA135: 42 | AB135: NBC | AC135: 612 | AD135: Diseño y administración de redes y bases de datos | AE135: 612 | BA135: COL0016999 | BB135: Elementos de concreto y de mampostería | BC135: 1 | BD135: =ROW() -> 135
AA136: 43 | AB136: NBC | AC136: 613 | AD136: Desarrollo y análisis de software y aplicaciones | AE136: 613 | BA136: COL0016999 | BB136: Instrumentación estructural y sensórica | BC136: 2 | BD136: =ROW() -> 136
AA137: 44 | AB137: NBC | AC137: 711 | AD137: Ingeniería y procesos químicos | AE137: 711 | BA137: COL0016999 | BB137: Modelación Matemática | BC137: 3 | BD137: =ROW() -> 137
AA138: 45 | AB138: NBC | AC138: 712 | AD138: Tecnología de protección del medio ambiente | AE138: 712 | BA138: COL0016999 | BB138: Vulnerabilidad Sísmica | BC138: 4 | BD138: =ROW() -> 138
AA139: 46 | AB139: NBC | AC139: 713 | AD139: Electricidad y energía | AE139: 713 | BA139: COL0047566 | BB139: EDUCACIÓN EN INGENIERÍA | BC139: 1 | BD139: =ROW() -> 139
AA140: 47 | AB140: NBC | AC140: 714 | AD140: Electrónica y automatización | AE140: 714 | BA140: COL0047566 | BB140: EVALUACIÓN ECONÓMICA Y ADMINISTRATIVA EN INGENIERÍA | BC140: 2 | BD140: =ROW() -> 140
AA141: 48 | AB141: NBC | AC141: 715 | AD141: Mecánica y profesiones afines a la metalistería | AE141: 715 | BA141: COL0047566 | BB141: GEOMATICA | BC141: 3 | BD141: =ROW() -> 141
AA142: 49 | AB142: NBC | AC142: 716 | AD142: Vehículos, barcos y aeronaves motorizadas | AE142: 716 | BA142: COL0047566 | BB142: GERENCIA DE PROYECTOS | BC142: 4 | BD142: =ROW() -> 142
AA143: 50 | AB143: NBC | AC143: 721 | AD143: Procesamiento de alimentos | AE143: 721 | BA143: COL0047566 | BB143: PROCESOS ESTOCÁSTICOS | BC143: 5 | BD143: =ROW() -> 143
AA144: 51 | AB144: NBC | AC144: 722 | AD144: Materiales (vidrio, papel, plástico y madera) | AE144: 722 | BA144: COL0047566 | BB144: PRODUCTIVIDAD E IMPACTO AMBIENTAL EN PROYECTOS DE INGENIERIA CIVIL (CONSTRUCCIÓN SOSTENIBLE) | BC144: 6 | BD144: =ROW() -> 144
AA145: 52 | AB145: NBC | AC145: 723 | AD145: Producción textiles (ropa, calzado y artículos de cuero) | AE145: 723 | BA145: COL0050982 | BB145: Expansión de Células Stem | BC145: 1 | BD145: =ROW() -> 145
AA146: 53 | AB146: NBC | AC146: 724 | AD146: Minería y extracción | AE146: 724 | BA146: COL0050982 | BB146: Inmunoregulación | BC146: 2 | BD146: =ROW() -> 146
AA147: 54 | AB147: NBC | AC147: 731 | AD147: Arquitectura y urbanismo | AE147: 731 | BA147: COL0050982 | BB147: Investigación en Cáncer | BC147: 3 | BD147: =ROW() -> 147
AA148: 55 | AB148: NBC | AC148: 732 | AD148: Construcción e ingeniería civil | AE148: 732 | BA148: COL0050982 | BB148: Mesénquima | BC148: 4 | BD148: =ROW() -> 148
AA149: 56 | AB149: NBC | AC149: 811 | AD149: Producción agrícola y ganadera | AE149: 811 | BA149: COL0129689 | BB149: Cirugía Ortognática y Distracción Osteogénica | BC149: 1 | BD149: =ROW() -> 149
AA150: 57 | AB150: NBC | AC150: 812 | AD150: Horticultura | AE150: 812 | BA150: COL0129689 | BB150: Implantología y Cirugía Reconstructiva | BC150: 2 | BD150: =ROW() -> 150
AA151: 58 | AB151: NBC | AC151: 821 | AD151: Silvicultura | AE151: 821 | BA151: COL0129689 | BB151: Infecciones, Patología y Cirugía Dentoalveolar | BC151: 3 | BD151: =ROW() -> 151
AA152: 59 | AB152: NBC | AC152: 831 | AD152: Pesca | AE152: 831 | BA152: COL0036749 | BB152: Accesibilidad | BC152: 1 | BD152: =ROW() -> 152
AA153: 60 | AB153: NBC | AC153: 841 | AD153: Veterinaria | AE153: 841 | BA153: COL0036749 | BB153: Multimedia Analítica | BC153: 2 | BD153: =ROW() -> 153
AA154: 61 | AB154: NBC | AC154: 911 | AD154: Odontología | AE154: 911 | BA154: COL0002896 | BB154: Bioética Educación y Cultura | BC154: 1 | BD154: =ROW() -> 154
AA155: 62 | AB155: NBC | AC155: 912 | AD155: Medicina | AE155: 912 | BA155: COL0002896 | BB155: Educación y Sociedad | BC155: 2 | BD155: =ROW() -> 155
AA156: 63 | AB156: NBC | AC156: 913 | AD156: Enfermería y partería | AE156: 913 | BA156: COL0002896 | BB156: Educación y cultura | BC156: 3 | BD156: =ROW() -> 156
AA157: 64 | AB157: NBC | AC157: 914 | AD157: Tecnología de diagnóstico y tratamiento médico | AE157: 914 | BA157: COL0066229 | BB157: (EO) Estructuras Organizacionales | BC157: 1 | BD157: =ROW() -> 157
AA158: 65 | AB158: NBC | AC158: 915 | AD158: Terapia y rehabilitación | AE158: 915 | BA158: COL0066229 | BB158: (PI) Procesos de Integración | BC158: 2 | BD158: =ROW() -> 158
AA159: 66 | AB159: NBC | AC159: 916 | AD159: Farmacia | AE159: 916 | BA159: COL0066229 | BB159: (R) Regionalización | BC159: 3 | BD159: =ROW() -> 159
AA160: 67 | AB160: NBC | AC160: 917 | AD160: Medicina y terapia tradicional y complementaria | AE160: 917 | BA160: COL0028767 | BB160: CONTABILIDAD INTERNACIONAL | BC160: 1 | BD160: =ROW() -> 160
AA161: 68 | AB161: NBC | AC161: 921 | AD161: Asistencia a adultos mayores y discapacitados | AE161: 921 | BA161: COL0028767 | BB161: Contabilidad y Sociedad | BC161: 2 | BD161: =ROW() -> 161
AA162: 69 | AB162: NBC | AC162: 922 | AD162: Asistencia a la infancia y servicios para jóvenes | AE162: 922 | BA162: COL0028767 | BB162: Contabilidad y gestion | BC162: 3 | BD162: =ROW() -> 162
AA163: 70 | AB163: NBC | AC163: 923 | AD163: Trabajo social y orientación | AE163: 923 | BA163: COL0028767 | BB163: Estudios contemporáneos en contabilidad y finanzas | BC163: 4 | BD163: =ROW() -> 163
AA164: 71 | AB164: NBC | AC164: 1011 | AD164: Servicios domésticos | AE164: 1011 | BA164: COL0028767 | BB164: Estudios contemporáneos en gestión y organizaciones | BC164: 5 | BD164: =ROW() -> 164
AA165: 72 | AB165: NBC | AC165: 1012 | AD165: Peluquería y tratamientos de belleza | AE165: 1012 | BA165: COL0048492 | BB165: Biología Molecular de organismos acuáticos, con énfasis en especies de interés comercial y amenazadas. | BC165: 1 | BD165: =ROW() -> 165
AA166: 73 | AB166: NBC | AC166: 1013 | AD166: Hotelería, restaurantes y servicios de banquetes | AE166: 1013 | BA166: COL0048492 | BB166: DINÁMICA ECOLÓGICA DEL ZOOPLANCTON EN EL OCÉANO PACÍFICO COLOMBIANO. CRUCEROS 2007-2010 DE LA SERIE ERFEN (ESTUDIO REGIONAL DEL FENÓMENO EL NIŃO). | BC166: 2 | BD166: =ROW() -> 166
AA167: 74 | AB167: NBC | AC167: 1014 | AD167: Deportes | AE167: 1014 | BA167: COL0048492 | BB167: Estudios Morfológicos, Tróficos, Ecológicos, Bióticos y Abióticos de Humedales Colombianos, con énfasis en la Sabana de Bogotá. | BC167: 3 | BD167: =ROW() -> 167
AA168: 75 | AB168: NBC | AC168: 1015 | AD168: Viajes, turismo y actividades recreativas | AE168: 1015 | BA168: COL0048492 | BB168: Estudios morfológicos, nutricionales, ontogénicos y de cultivo de organismos acuáticos de interés comercial. | BC168: 4 | BD168: =ROW() -> 168
AA169: 76 | AB169: NBC | AC169: 1021 | AD169: Saneamiento de la comunidad | AE169: 1021 | BA169: COL0077814 | BB169: Producción Hortícola Limpia | BC169: 1 | BD169: =ROW() -> 169
AA170: 77 | AB170: NBC | AC170: 1022 | AD170: Salud y protección laboral | AE170: 1022 | BA170: COL0077707 | BB170: Biodiversidad y Conservación | BC170: 1 | BD170: =ROW() -> 170
AA171: 78 | AB171: NBC | AC171: 1031 | AD171: Educación militar y de defensa | AE171: 1031 | BA171: COL0077707 | BB171: Bioprospección de Comunidades Vegetales | BC171: 2 | BD171: =ROW() -> 171
AA172: 79 | AB172: NBC | AC172: 1032 | AD172: Protección de las personas y de la propiedad | AE172: 1032 | BA172: COL0077707 | BB172: Búsqueda Biodirigida y Síntesis de Sustancias Bioactivas | BC172: 3 | BD172: =ROW() -> 172
AA173: 80 | AB173: NBC | AC173: 1041 | AD173: Servicios de transporte | AE173: 1041 | BA173: COL0077707 | BB173: Fitopatología y ecofisiología vegetal | BC173: 4 | BD173: =ROW() -> 173
AA174: 1 | AB174: Nivel | AC174: 1 | AD174: Postdoctorado | AE174: =AC174 -> 1 | BA174: COL0077707 | BB174: Metabolómica | BC174: 5 | BD174: =ROW() -> 174
AA175: 2 | AB175: Nivel | AC175: 2 | AD175: Doctorado | AE175: =AC175 -> 2 | BA175: COL0077707 | BB175: Modelado Molecular y Quimioinformática | BC175: 6 | BD175: =ROW() -> 175
AA176: 3 | AB176: Nivel | AC176: 3 | AD176: Maestría | AE176: 3 | BA176: COL0077707 | BB176: Química Ambiental | BC176: 7 | BD176: =ROW() -> 176
AA177: 4 | AB177: Nivel | AC177: 4 | AD177: Esp. universitaria | AE177: 4 | BA177: COL0077707 | BB177: Química Bioorgánica | BC177: 8 | BD177: =ROW() -> 177
AA178: 5 | AB178: Nivel | AC178: 5 | AD178: Esp. Técnica Profesional | AE178: 5 | BA178: COL0077707 | BB178: Redes Tróficas y Agroecología | BC178: 9 | BD178: =ROW() -> 178
AA179: 6 | AB179: Nivel | AC179: 6 | AD179: Esp. Tecnológica | AE179: 6 | BA179: COL0110436 | BB179: Bioquímica | BC179: 1 | BD179: =ROW() -> 179
AA180: 7 | AB180: Nivel | AC180: 7 | AD180: Universitario | AE180: 7 | BA180: COL0110436 | BB180: Biorremedación | BC180: 2 | BD180: =ROW() -> 180
AA181: 8 | AB181: Nivel | AC181: 8 | AD181: Tecnológico | AE181: 8 | BA181: COL0110436 | BB181: Fitoquímica | BC181: 3 | BD181: =ROW() -> 181
AA182: 9 | AB182: Nivel | AC182: 9 | AD182: Técnico profesional | AE182: 9 | BA182: COL0110436 | BB182: Química Inorgánica | BC182: 4 | BD182: =ROW() -> 182
AA183: 10 | AB183: Nivel | AC183: 10 | AD183: Estudiante pregrado | AE183: 10 | BA183: COL0110436 | BB183: Química Verde | BC183: 5 | BD183: =ROW() -> 183
AA184: 1 | AB184: A | AC184: 100 | AD184: Puede aplicar al maximo de presupuesto dependiendo los puntos comprometidos | BA184: COL0110436 | BB184: Química de coordinación y catálisis ambiental | BC184: 6 | BD184: =ROW() -> 184
AA185: 8 | AB185: A1 | AC185: 100 | AD185: Puede aplicar al maximo de presupuesto dependiendo los puntos comprometidos | BA185: COL0125134 | BB185: Ayudas Auditivas Implantables | BC185: 1 | BD185: =ROW() -> 185
AA186: 9 | AB186: B | AC186: 100 | AD186: Puede aplicar al maximo de presupuesto dependiendo los puntos comprometidos | BA186: COL0125134 | BB186: Base de cráneo | BC186: 2 | BD186: =ROW() -> 186
AA187: 10 | AB187: C | AC187: 100 | AD187: Puede aplicar al maximo de presupuesto dependiendo los puntos comprometidos | BA187: COL0125134 | BB187: Cáncer Laríngeo | BC187: 3 | BD187: =ROW() -> 187
AA188: 11 | AB188: D | AC188: 50 | AD188: Puede aplicar hasta 50 millones de presupuesto dependiendo los puntos comprometidos | BA188: COL0125134 | BB188: Enfermedad de Meniere | BC188: 4 | BD188: =ROW() -> 188
AA189: 2 | AB189: R | AC189: 25 | AD189: Puede aplicar hasta 25 millones de presupuesto dependiendo los puntos comprometidos | BA189: COL0125134 | BB189: Oído Crónico | BC189: 5 | BD189: =ROW() -> 189
AA190: 2 | AB190: NR | AC190: 25 | AD190: Puede aplicar hasta 25 millones de presupuesto dependiendo los puntos comprometidos | BA190: COL0125134 | BB190: Rinosinusitis Crónica | BC190: 6 | BD190: =ROW() -> 190
BA191: COL0125134 | BB191: Trauma de guerra en Otorrinolaringología | BC191: 7 | BD191: =ROW() -> 191
BA192: COL0120281 | BB192: Medicina Electrodiagnostica | BC192: 1 | BD192: =ROW() -> 192
BA193: COL0120281 | BB193: Rehabilitacion Neurologica | BC193: 2 | BD193: =ROW() -> 193
BA194: COL0120281 | BB194: Rehabilitacion cardio-pulmonar | BC194: 3 | BD194: =ROW() -> 194
BA195: COL0120281 | BB195: Rehabilitacion musculo esqueletica | BC195: 4 | BD195: =ROW() -> 195
BA196: COL0120281 | BB196: Rehabilitación Infantil | BC196: 5 | BD196: =ROW() -> 196
BA197: COL0128047 | BB197: Derecho de la responsabilidad y de seguros | BC197: 1 | BD197: =ROW() -> 197
BA198: COL0128047 | BB198: Derecho económico y de los negocios. | BC198: 2 | BD198: =ROW() -> 198
BA199: COL0116538 | BB199: Andrologia y Salud sexual | BC199: 1 | BD199: =ROW() -> 199
BA200: COL0116538 | BB200: Hiperplasia Prostatica | BC200: 2 | BD200: =ROW() -> 200
... 102 more rows

Sheet General
A1: 1 | H1: =IFERROR(VLOOKUP($C$7,Dt!AD79:AE80,2,0),"INV") -> INV | I1: =IFERROR(VLOOKUP($C$12,Dt!$AC$6:$AD$13,2,0),"NT") -> NT | N1: 7 | O1: A | P1: =COUNTIF($I$17:$I$25,O1) -> 0 | Q1: =IF(P1>0,$N1,0) -> 0 | X1: Número de Paginas del documento final , se puede ajustar.
B2: PRESENTACIÓN DE PROYECTOS DE INVESTIGACIÓN | H2: Fecha de Emisión: 2017/02/28 | I2: IN-IV-F-14 | N2: 6 | O2: A1 | P2: =COUNTIF($I$17:$I$25,O2) -> 0 | Q2: 0 | X2: 11
H3: Revision N°: 2 | I3: ="Página "&A1&" de "&Dt_TPG -> Página 1 de 11 | N3: 5 | O3: B | P3: 0 | Q3: 0 | S3: Investigación Científica
P4: 0 | Q4: 0
A5: 1.- | B5: Información general del proyecto. | N5: 4 | O5: C | P5: 0 | Q5: 0 | X5: Hoy es
P6: 0 | Q6: 0
B7: Convocatoria: | C7: Investigación Científica | N7: 3 | O7: D | P7: 0 | Q7: 0 | X7: =NOW() -> 2017-03-21T09:44:58.680
N8: 2 | O8: R | P8: 0 | Q8: 0
N9: 1 | O9: NR | P9: 0 | Q9: 0
B10: Líder: | G10: Teléfonos : | X10: 2017-03-02
B11: Correo: | G11: Sede:
B12: Facultad | G12: Programa | L12: Clasificación Grupo Máximo | M12: =IFERROR(VLOOKUP($N$12,$N$1:$O$9,2,0),"NR") -> NR | N12: =MAX(Q1:Q9) -> 0
A14: 2.- | B14: Información de Grupos de Investigación UMNG asiados al proyecto
B16: Grupo Principal | K16: =IF(AND(Cel_TP="IMP",L17>0),D16,1) -> 1 | L16: =IFERROR(VLOOKUP($D16,Dt!$AP$3:$AQ$78,2,0),0) -> 0
B17: Link Colciencias: | C17: =IFERROR(VLOOKUP(L16,Dt!$AQ$3:$AS$78,3,0),"") ->  | I17: =IFERROR(VLOOKUP(L16,Dt!$AQ$3:$AS$78,2,0),"") ->  | K17: =I17 ->  | L17: =COUNTIF($O$7:$O$9,I17) -> 0
B18: Lineas | K18: ="Puntos:"&Productos!H39 -> Puntos:39 | L18: =IFERROR("DT!"&VLOOKUP($D16,Dt!$AP$3:$AT$78,5,0),0) -> 0
A20: =IFERROR(VLOOKUP(D20,Dt!$AP$3:$AU$78,5,0),"") ->  | B20: Grupo Aliado 1 | L20: =IFERROR(VLOOKUP($D20,Dt!$AP$3:$AQ$78,2,0),0) -> 0
B21: Link Colciencias: | C21: =IFERROR(VLOOKUP(L20,Dt!$AQ$3:$AS$78,3,0),"") ->  | I21: =IFERROR(VLOOKUP(L20,Dt!$AQ$3:$AS$78,2,0),"") -> 
A22: =IFERROR(VLOOKUP($C22,Dt!$BB$3:$BD$300,3,0),"") ->  | B22: Lineas | L22: =IFERROR("DT!"&VLOOKUP($D20,Dt!$AP$3:$AT$78,5,0),0) -> 0
B24: Grupo Aliado 2 | L24: =IFERROR(VLOOKUP($D24,Dt!$AP$3:$AQ$78,2,0),0) -> 0
B25: Link Colciencias: | C25: =IFERROR(VLOOKUP(L24,Dt!$AQ$3:$AS$78,3,0),"") ->  | I25: ="Clasif.:"&IFERROR(VLOOKUP(L24,Dt!$AQ$3:$AS$78,2,0),"") -> Clasif.:
B26: Lineas | L26: =IFERROR("DT!"&VLOOKUP($D24,Dt!$AP$3:$AT$78,5,0),0) -> 0
A28: 3.- | B28: Instituciones Externas participantes.
B30: Nombre
B31: Grupo | H31: Clasificación
B32: Investigadores | H32: Presupuesto en plan de compras: | I32: =Presupuesto!H119 -> 0
B33: Link Colciencias: | K33: =IF(L33=0,C33,0) -> 0 | L33: =IFERROR(SEARCH(M33,C33,1),0) -> 0 | M33: http://scienti.colciencias.gov
B35: Datos comprometidos.
B37: Productividad comprometida | D37: =IF(K37>0,"Error revice productos ",V_Max) -> 0 | F37: $ Vicein: | G37: =IF(D37>0,Presupuesto!F119,0) -> 0 | I37: ="Limite en millones "&Integrantes!T4 -> Limite en millones 25 | K37: =IF(Productos!P42>0,1,0) -> 0
B38: * Las areas sombreadas de color azul no son editables
B40: Observaciones o recomendaciones (no valida para calificación de Propuesta):
B44: Calificación del formato

Sheet Resumen
A1: 2 | G1: *Pueden Ocultar las Filas que no se utilicen.
C2: PRESENTACIÓN DE PROYECTOS DE INVESTIGACIÓN | D2: =General!$H$2 -> Fecha de Emisión: 2017/02/28 | E2: =General!$I$2 -> IN-IV-F-14 | G2: =SUM(G7:G14) -> 0 | H2: <=== N° palabras en total
D3: =General!$H$3 -> Revision N°: 2 | E3: ="Página "&A1&" de "&Dt_TPG -> Página 2 de 11 | G3: Palabras | H3: Largo L | I3: Limite
A5: 4.- | B5: # | C5: Resumen de la propuesta .( 250 Palabras) | G5: =SUM(G6:G15) -> 0 | H5: =SUM(H6:H15) -> 0 | I5: 250
I6: =I5 -> 250
B7: =ROW()-6 -> 1 | G7: =IF(C7="",0,LEN(TRIM(C7))-LEN(SUBSTITUTE(TRIM(C7)," ",""))+1) -> 0 | H7: =LEN(C7) -> 0 | I7: =I6 -> 250
B8: =ROW()-6 -> 2 | G8: =IF(C8="",0,LEN(TRIM(C8))-LEN(SUBSTITUTE(TRIM(C8)," ",""))+1) -> 0 | H8: =LEN(C8) -> 0 | I8: 250
B9: 3 | G9: =IF(C9="",0,LEN(TRIM(C9))-LEN(SUBSTITUTE(TRIM(C9)," ",""))+1) -> 0 | H9: 0 | I9: 250
B10: 4 | G10: 0 | H10: 0 | I10: 250
B11: 5 | G11: 0 | H11: 0 | I11: 250
B12: 6 | G12: 0 | H12: 0 | I12: 250
B13: 7 | G13: 0 | H13: 0 | I13: 250
B14: 8 | G14: 0 | H14: 0 | I14: 250
C16: =IF(G2>250,I16, "-") -> - | I16: ="Supera el número de palabra permitidas para el resumen por favor quitar "&(G2-250)&" palabras." -> Supera el número de palabra permitidas para el resumen por favor quitar -250 palabras.
A18: 5.- | B18: # | C18: Planteamiento y justificación de la propuesta. | G18: =SUM(G19:G300) -> 0 | H18: <=== Palabras en total
G19: =IF(C19="",0,LEN(TRIM(C19))-LEN(SUBSTITUTE(TRIM(C19)," ",""))+1) -> 0
B20: =ROW()-19 -> 1 | G20: 0
B21: =ROW()-19 -> 2 | G21: 0
B22: 3 | G22: 0
B23: 4 | G23: 0
B24: 5 | G24: 0
B25: 6 | G25: 0
B26: 7 | G26: 0
B27: 8 | G27: 0
B28: 9 | G28: 0
B29: 10 | G29: 0
B32: *Pueden Ocultar las Filas que no se utilicen.

Sheet Estado_del_arte
A1: 3 | G1: *Pueden Ocultar las Filas que no se utilicen.
C2: PRESENTACIÓN DE PROYECTOS DE INVESTIGACIÓN | D2: =General!$H$2 -> Fecha de Emisión: 2017/02/28 | E2: =General!$I$2 -> IN-IV-F-14
D3: =General!$H$3 -> Revision N°: 2 | E3: ="Página "&A1&" de "&Dt_TPG -> Página 3 de 11 | G3: =SUM(G7:G3500) -> 0 | H3: <== Total de palabras
A5: 6.- | B5: # | C5: Estado del arte de la propuesta o antecedesntes. | G5: Largo
B7: =ROW()-6 -> 1 | G7: =IF(C7="",0,LEN(TRIM(C7))-LEN(SUBSTITUTE(TRIM(C7)," ",""))+1) -> 0
B8: =ROW()-6 -> 2 | G8: =IF(C8="",0,LEN(TRIM(C8))-LEN(SUBSTITUTE(TRIM(C8)," ",""))+1) -> 0
B9: 3 | G9: 0
B10: 4 | G10: 0
B11: 5 | G11: 0
B12: 6 | G12: 0
B13: 7 | G13: 0
B14: 8 | G14: 0
B15: 9 | G15: 0
B16: 10 | G16: 0
B17: 11 | G17: 0
B18: 12 | G18: 0
B19: 13 | G19: 0
B20: 14 | G20: 0
B21: 15 | G21: 0
B22: 16 | G22: 0
B23: 17 | G23: 0
B24: 18 | G24: 0
B25: 19 | G25: 0
B26: 20 | G26: 0
B27: 21 | G27: 0
B28: 22 | G28: 0
B29: 23 | G29: 0
B30: 24 | G30: 0
B31: 25 | G31: 0
B32: 26 | G32: 0
B33: 27 | G33: 0
B34: 28 | G34: 0
B35: 29 | G35: 0
B36: 30 | G36: 0
B40: *Pueden Ocultar las Filas que no se utilicen.

Sheet Objetivos
A1: 4
B2: PRESENTACIÓN DE PROYECTOS DE INVESTIGACIÓN | D2: =General!$H$2 -> Fecha de Emisión: 2017/02/28 | E2: =General!$I$2 -> IN-IV-F-14
D3: =General!$H$3 -> Revision N°: 2 | E3: ="Página "&A1&" de "&Dt_TPG -> Página 4 de 11 | G3: =SUM(G7:G3500) -> 0 | H3: <== Total de palabras
A5: 7.- | B5: Objetivos de la propuesta. | G5: Largo
B7: *El especio del Item (0) Cero es para definir el objetivo general los demás corresponden a objetivos especificos
B8: =ROW()-8 -> 0 | G8: =IF(C8="",0,LEN(TRIM(C8))-LEN(SUBSTITUTE(TRIM(C8)," ",""))+1) -> 0
B9: =ROW()-8 -> 1 | G9: 0
B10: 2 | G10: 0
B11: 3 | G11: 0
B12: 4 | G12: 0
B13: 5 | G13: 0
B14: 6 | G14: 0
B15: 7 | G15: 0
B16: 8 | G16: 0
B17: 9 | G17: 0
B18: 10 | G18: 0
B19: 11 | G19: 0
B20: 12 | G20: 0
B21: 13 | G21: 0
B22: 14 | G22: 0
B23: 15 | G23: 0

Sheet Metodología
A1: 5 | G1: *Pueden Ocultar las Filas que no se utilicen.
C2: PRESENTACIÓN DE PROYECTOS DE INVESTIGACIÓN | D2: =General!$H$2 -> Fecha de Emisión: 2017/02/28 | E2: =General!$I$2 -> IN-IV-F-14
D3: =General!$H$3 -> Revision N°: 2 | E3: ="Página "&A1&" de "&Dt_TPG -> Página 5 de 11 | G3: =SUM(G7:G3500) -> 0 | H3: <== Total de palabras
A5: 8.- | B5: # | C5: Metodología de la propuesta. | G5: Largo
B7: =ROW()-6 -> 1 | G7: =IF(C7="",0,LEN(TRIM(C7))-LEN(SUBSTITUTE(TRIM(C7)," ",""))+1) -> 0
B8: =ROW()-6 -> 2 | G8: =IF(C8="",0,LEN(TRIM(C8))-LEN(SUBSTITUTE(TRIM(C8)," ",""))+1) -> 0
B9: 3 | G9: 0
B10: 4 | G10: 0
B11: 5 | G11: 0
B12: 6 | G12: 0
B13: 7 | G13: 0
B14: 8 | G14: 0
B15: 9 | G15: 0
B16: 10 | G16: 0
B17: 11 | G17: 0
B18: 12 | G18: 0
B19: 13 | G19: 0
B20: 14 | G20: 0
B21: 15 | G21: 0
B22: 16 | G22: 0
B23: 17 | G23: 0
B24: 18 | G24: 0
B25: 19 | G25: 0
B26: 20 | G26: 0
B27: 21 | G27: 0
B28: 22 | G28: 0
B29: 23 | G29: 0
B30: 24 | G30: 0
B31: 25 | G31: 0
B32: 26 | G32: 0
B33: 27 | G33: 0
B34: 28 | G34: 0
B35: 29 | G35: 0
B40: *Pueden Ocultar las Filas que no se utilicen.

Sheet Cronograma
A1: 6 | I1: *Pueden Ocultar las Filas que no se utilicen. | L1: =("* Actualmente tiene "&G7&" meses de ejecución no superar los "& G5&" meses.") -> * Actualmente tiene 0 meses de ejecución no superar los 12 meses.
B2: PRESENTACIÓN DE PROYECTOS DE INVESTIGACIÓN | D2: =General!$H$2 -> Fecha de Emisión: 2017/02/28 | E2: =General!$I$2 -> IN-IV-F-14
D3: =General!$H$3 -> Revision N°: 2 | E3: ="Página "&A1&" de "&Dt_TPG -> Página 6 de 11
A5: 9.- | B5: Cronograma de actividades a desarrollar | E5: =Integrantes!J6 -> 12 | G5: =E5 -> 12 | H5: Meses Maximo | I5: Palabras
B7: No | C7: Descripción básica de la actividad | D7: Mes de Inicio | E7: Duración en mes | G7: =MAX(G8:G27) -> 0 | H7: Meses de ejecición actuales | I7: =SUM(I8:I27) -> 0 | J7: <== Total de palabras
B8: =ROW()-7 -> 1 | G8: =SUM(D8:E8) -> 0 | I8: =IF(C8="",0,LEN(TRIM(C8))-LEN(SUBSTITUTE(TRIM(C8)," ",""))+1) -> 0
B9: =ROW()-7 -> 2 | G9: =SUM(D9:E9) -> 0 | I9: =IF(C9="",0,LEN(TRIM(C9))-LEN(SUBSTITUTE(TRIM(C9)," ",""))+1) -> 0
B10: 3 | G10: 0 | I10: 0
B11: 4 | G11: 0 | I11: 0
B12: 5 | G12: 0 | I12: 0
B13: 6 | G13: 0 | I13: 0
B14: 7 | G14: 0 | I14: 0
B15: 8 | G15: 0 | I15: 0
B16: 9 | G16: 0 | I16: 0
B17: 10 | G17: 0 | I17: 0
B18: 11 | G18: 0 | I18: 0
B19: 12 | G19: 0 | I19: 0
B20: 13 | G20: 0 | I20: 0
B21: 14 | G21: 0 | I21: 0
B22: 15 | G22: 0 | I22: 0
B23: 16 | G23: 0 | I23: 0
B24: 17 | G24: 0 | I24: 0
B25: 18 | G25: 0 | I25: 0
B26: 19 | G26: 0 | I26: 0
B27: 20 | G27: 0 | I27: 0
C29: =IF(G7>G5,L1,".") -> .
B33: *Pueden Ocultar las Filas que no se utilicen.

Sheet Productos
A1: 7
B2: PRESENTACIÓN DE PROYECTOS DE INVESTIGACIÓN | G2: =General!$H$2 -> Fecha de Emisión: 2017/02/28 | H2: =General!$I$2 -> IN-IV-F-14
G3: =General!$H$3 -> Revision N°: 2 | H3: ="Página "&A1&" de "&Dt_TPG -> Página 7 de 11 | K3: N | L3: Abreviatura | M3: IdClase | N3: INV | O3: IMP | P3: Clase | Q3: Tipo de Productos | R3: Indicadores | S3: o | T3: Ok
G4: =IF(H5="INV",3,4) -> 3 | K4: =ROW()-3 -> 1 | L4: Articulo Q1 | M4: GNC | N4: 60 | O4: 60 | P4: Productos de Generación de Nuevo Conocimiento (GNC) | Q4: En Cuartil 1 (Q1) de Scimago | R4: Comunicado sometido ante la editorial | S4: o | T4: =SUMIFS($F$7:$F$27,$C$7:$C$27,$L4) -> 0
A5: 10.- | B5: Productividad comprometida | F5: Tipo de proyecto: | H5: =General!$H$1 -> INV | K5: =ROW()-3 -> 2 | L5: Articulo Q2 | M5: GNC | N5: 50 | O5: 50 | P5: Productos de Generación de Nuevo Conocimiento (GNC) | Q5: En Cuartil 2 (Q2) de Scimago | R5: Comunicado sometido ante la editorial | S5: o | T5: =SUMIFS($F$7:$F$27,$C$7:$C$27,$L5) -> 0
B6: N° | C6: Resultado/Producto esperado | D6: Descripción o detalles del producto esperado | E6: Indicador | F6: Cantidad | G6: Total de puntos | H6: Benefi-ciario | K6: 3 | L6: Articulo Q3 | M6: GNC | N6: 40 | O6: 40 | P6: Productos de Generación de Nuevo Conocimiento (GNC) | Q6: En Cuartil 3 (Q3) de Scimago | R6: Comunicado sometido ante la editorial | S6: o | T6: 0
B7: =ROW()-6 -> 1 | E7: =IFERROR(VLOOKUP($C7,L3:$T$40,7,0)," ") ->  | F7: 1 | G7: =IFERROR(F7*VLOOKUP($C7,$L$3:$T$40,G$4,0)," ") ->  | K7: 4 | L7: Articulo Q4 | M7: GNC | N7: 30 | O7: 30 | P7: Productos de Generación de Nuevo Conocimiento (GNC) | Q7: En Cuartil 4 (Q4) de Scimago | R7: Comunicado sometido ante la editorial | S7: o | T7: 0
B8: =ROW()-6 -> 2 | E8: =IFERROR(VLOOKUP($C8,L4:$T$40,7,0)," ") ->  | F8: 1 | K8: 5 | L8: Articulo A1 | M8: GNC | N8: 20 | O8: 20 | P8: Productos de Generación de Nuevo Conocimiento (GNC) | Q8: En A1 de Publindex | R8: Comunicado sometido ante la editorial | S8: o | T8: 0
B9: 3 | E9: =IFERROR(VLOOKUP($C9,L5:$T$40,7,0)," ") ->  | F9: 1 | K9: 6 | L9: Articulo A2 | M9: GNC | N9: 16 | O9: 16 | P9: Productos de Generación de Nuevo Conocimiento (GNC) | Q9: En A2 de Publindex | R9: Comunicado sometido ante la editorial | S9: o | T9: 0
B10: 4 | E10: =IFERROR(VLOOKUP($C10,L6:$T$40,7,0)," ") ->  | F10: 0 | K10: 7 | L10: Articulo B | M10: GNC | N10: 14 | O10: 14 | P10: Productos de Generación de Nuevo Conocimiento (GNC) | Q10: En B de Publindex | R10: Comunicado sometido ante la editorial | S10: o | T10: 0
B11: 5 | E11: =IFERROR(VLOOKUP($C11,L7:$T$40,7,0)," ") ->  | F11: 0 | K11: 8 | L11: Articulo C | M11: GNC | N11: 12 | O11: 12 | P11: Productos de Generación de Nuevo Conocimiento (GNC) | Q11: En C de Publindex | R11: Comunicado sometido ante la editorial | S11: o | T11: 0
B12: 6 | E12: =IFERROR(VLOOKUP($C12,L8:$T$40,7,0)," ") ->  | F12: 0 | K12: 9 | L12: Libro Completo | M12: GNC | N12: 40 | O12: 40 | P12: Productos de Generación de Nuevo Conocimiento (GNC) | Q12: Libro de Investigación | R12: Comunicado de sometido ante la Div. de publicaciones o editorial. | S12: o | T12: 0
B13: 7 | E13: =IFERROR(VLOOKUP($C13,L9:$T$40,7,0)," ") ->  | F13: 0 | K13: 10 | L13: Cap. de Libro | M13: GNC | N13: 15 | O13: 15 | P13: Productos de Generación de Nuevo Conocimiento (GNC) | Q13: Capítulo de Libro de Investigación | R13: Comunicado de sometido ante la Div. de publicaciones o editorial. | S13: o | T13: 0
B14: 8 | E14: =IFERROR(VLOOKUP($C14,L10:$T$40,7,0)," ") ->  | F14: 0 | K14: 11 | L14: Patentes Invencion | M14: GNC | N14: 60 | O14: 60 | P14: Productos de Generación de Nuevo Conocimiento (GNC) | Q14: Productos o procesos tecnológicos patentados o registrados | R14: Resolución expedida SIC/ Patente | S14: o | T14: 0
B15: 9 | E15: =IFERROR(VLOOKUP($C15,L11:$T$40,7,0)," ") ->  | F15: 0 | K15: 12 | L15: Patentes Utilidad | M15: GNC | N15: 30 | O15: 30 | P15: Productos de Generación de Nuevo Conocimiento (GNC) | Q15: Productos o procesos tecnológicos patentados o registrados de modelo de utilidad | R15: Resolución expedida SIC/ Patente | S15: o | T15: 0
B16: 10 | E16: =IFERROR(VLOOKUP($C16,L12:$T$40,7,0)," ") ->  | F16: 0 | K16: 13 | L16: Software | M16: GNC | N16: 20 | O16: 20 | P16: Productos de Generación de Nuevo Conocimiento (GNC) | Q16: Software registrado | R16: Registro ante dirección nacional de derechos de autor | S16: o | T16: 0
B17: 11 | E17: =IFERROR(VLOOKUP($C17,L13:$T$40,7,0)," ") ->  | F17: 0 | K17: 14 | L17: Prototipo | M17: GNC | N17: 15 | O17: 15 | P17: Productos de Generación de Nuevo Conocimiento (GNC) | Q17: Productos o procesos tecnológicos usualmente no patentables (Prototipo) | R17: Modelo funcionalidad | S17: o | T17: 0
B18: 12 | E18: =IFERROR(VLOOKUP($C18,L14:$T$40,7,0)," ") ->  | F18: 0 | K18: 15 | L18: Empresa | M18: GNC | N18: 30 | O18: 30 | P18: Productos de Generación de Nuevo Conocimiento (GNC) | Q18: Empresa SpinOff en proceso de incubación | R18: Registro creación empresa cámara de comercio | S18: o | T18: 0
B19: 13 | E19: =IFERROR(VLOOKUP($C19,L15:$T$40,7,0)," ") ->  | F19: 0 | K19: 16 | L19: OVA | M19: GNC | N19: 8 | O19: 8 | P19: Productos de Generación de Nuevo Conocimiento (GNC) | Q19: Objeto Virtual de Aprendizaje | R19: Copia Archivo de Seguridad | S19: o | T19: 0
B20: 14 | E20: =IFERROR(VLOOKUP($C20,L16:$T$40,7,0)," ") ->  | F20: 0 | K20: 17 | L20: AVA | M20: GNC | N20: 15 | O20: 15 | P20: Productos de Generación de Nuevo Conocimiento (GNC) | Q20: Aula Virtual de Aprendizaje | R20: Copia Archivo de Seguridad | S20: o | T20: 0
B21: 15 | E21: =IFERROR(VLOOKUP($C21,L17:$T$40,7,0)," ") ->  | F21: 0 | K21: 18 | L21: Dir. Doctorado | M21: FRH | N21: 30 | O21: 30 | P21: Formación de Recurso Humano (FRH) | Q21: Dirección de Tesis de Doctorado en la UMNG con temática asociadas a línea de investigación a la que pertenece el proyecto | R21: Acta del comité de de investigacion donde se designa al director y anteproyecto de tesis doctoral o Certificado de la unidad Academica. | S21: o | T21: 0
B22: 16 | E22: =IFERROR(VLOOKUP($C22,L18:$T$40,7,0)," ") ->  | F22: 0 | K22: 19 | L22: Dir. Maestria | M22: FRH | N22: 15 | O22: 15 | P22: Formación de Recurso Humano (FRH) | Q22: Dirección de Trabajos de Maestría en la UMNG con temática asociadas a línea de investigación a la que pertenece el proyecto | R22: Acta del comité de de investigacion donde se designa al tutor y anteproyecto o Certificado de la unidad Academica. | S22: o | T22: 0
B23: 17 | E23: =IFERROR(VLOOKUP($C23,L19:$T$40,7,0)," ") ->  | F23: 0 | K23: 20 | L23: Dir. Trab. Grado | M23: FRH | N23: 10 | O23: 10 | P23: Formación de Recurso Humano (FRH) | Q23: Dirección de Trabajos de Grado en la UMNG con temática asociadas a línea de investigación a la que pertenece el proyecto | R23: Copia del acta sustentación del proyecto de grado | S23: o | T23: 0
B24: 18 | E24: =IFERROR(VLOOKUP($C24,L20:$T$40,7,0)," ") ->  | F24: 0 | K24: 21 | L24: Dir. PIC | M24: FRH | N24: 5 | O24: 0 | P24: Formación de Recurso Humano (FRH) | Q24: Dirección de Proyectos de Iniciación Científica en la UMNG con temática asociadas a línea de investigación a la que pertenece el proyecto | R24: Informe final | S24: o | T24: 0
B25: 19 | E25: =IFERROR(VLOOKUP($C25,L21:$T$40,7,0)," ") ->  | F25: 0 | K25: 22 | L25: Jov. Investigador | M25: FRH | N25: 10 | O25: 10 | P25: Formación de Recurso Humano (FRH) | Q25: Contratación de Joven Investigador UMNG | R25: Contrato OPS Fotocopia | S25: o | T25: 0
B26: 20 | E26: =IFERROR(VLOOKUP($C26,L22:$T$40,7,0)," ") ->  | F26: 0 | K26: 23 | L26: =IF(H5="IMP","Asis. Graduado(IMP)","..") -> .. | M26: FRH | N26: 0 | O26: 10 | P26: Formación de Recurso Humano (FRH) | Q26: Contratación de Asistente Graduado UMNG | R26: Contrato OPS Fotocopia | S26: o | T26: 0
K27: 24 | L27: Cond. Doctorado | M27: FRH | N27: 10 | O27: 10 | P27: Formación de Recurso Humano (FRH) | Q27: Conducción de asignatura en Programa Doctoral con temática asociadas a línea de investigación a la que pertenece el proyecto | R27: Acta del comité curricular aprobado los contenidos y que se verifique la articulación con la línea de investigación, copia plan de trabajo o Certificado de la unidad Academica. | S27: o | T27: 0
B28: T | C28: ="Tiene "&V_Max&" Pts. de un limite máximo de "& H39&" Pts." -> Tiene 0 Pts. de un limite máximo de 39 Pts. | F28: =SUM(F6:F26) -> 3 | G28: =INT(SUM(G6:G26)) -> 0 | K28: 25 | L28: Cond. Maestria | M28: FRH | N28: 5 | O28: 5 | P28: Formación de Recurso Humano (FRH) | Q28: Conducción de asignatura en Maestría de investigación con temática asociadas a línea de investigación a la que pertenece el proyecto | R28: Acta del comité curricular aprobado los contenidos y que se verifique la articulación con la línea de investigación, copia plan de trabajo o Certificado de la unidad Academica. | S28: o | T28: 0
B29: =IF(V_Max>H39,Q42,"") ->  | H29: =IF(AND(H5="INV",T26>0),Q45,"") ->  | K29: 26 | L29: Ponencia Inter. | M29: SAC | N29: 8 | O29: 8 | P29: Socialización y Apropiacióndel Conocimiento (SAC) | Q29: Ponencia en evento Internacional (**) | R29: Resumen publicado en memoria con ISSN o ISBN del evento y/o certificado de ponente | S29: o | T29: 0
K30: 27 | L30: Ponencia Nac. | M30: SAC | N30: 6 | O30: 6 | P30: Socialización y Apropiacióndel Conocimiento (SAC) | Q30: Ponencia en evento nacional (***) | R30: Resumen publicado en memoria con ISSN o ISBN del evento y/o certificado de ponente | S30: o | T30: 0
B31: N | C31: Sigla | D31: Clase | H31: No | K31: 28 | L31: Ponencia Insti. | M31: SAC | N31: 4 | O31: 0 | P31: Socialización y Apropiacióndel Conocimiento (SAC) | Q31: Ponencia en evento Institucional | R31: Resumen publicado en memoria del evento y/o certificado de ponente | S31: o | T31: 0
B32: 1 | C32: GNC | D32: Productos de Generación de Nuevo Conocimiento (GNC) | H32: =SUMIF($M$4:$M$40,$C32,$T$4:$T$40) -> 0 | K32: 29 | L32: Org. Evento Inter. | M32: SAC | N32: 8 | O32: 8 | P32: Socialización y Apropiacióndel Conocimiento (SAC) | Q32: Organización de Eventos de alcance Internacional con temáticas asociadas al tema de investigación del grupo | R32: Certificado de la participación de la organización del evento | S32: o | T32: 0
B33: 2 | C33: FRH | D33: Formación de Recurso Humano (FRH) | H33: =SUMIF($M$4:$M$40,$C33,$T$4:$T$40) -> 0 | K33: 30 | L33: Org. Evento Nac. | M33: SAC | N33: 4 | O33: 4 | P33: Socialización y Apropiacióndel Conocimiento (SAC) | Q33: Organización de Eventos de alcance nacional con temáticas asociadas al tema de investigación del grupo | R33: Certificado de la participación de la organización del evento | S33: o | T33: 0
B34: 3 | C34: SAC | D34: Socialización y Apropiacióndel Conocimiento (SAC) | H34: =SUMIF($M$4:$M$40,$C34,$T$4:$T$40) -> 0 | K34: 31 | L34: Org. Evento Insti. | M34: SAC | N34: 2 | O34: 0 | P34: Socialización y Apropiacióndel Conocimiento (SAC) | Q34: Organización de Eventos de alcance institucional contemáticas asociadas al temde investigación del grupo | R34: Resumen publicado en libro de memoria del evento o Certificado del comité organizador del evento. | S34: o | T34: 0
B35: 4 | C35: GI | D35: Gestión de Investigación (GI) | H35: =SUMIF($M$4:$M$40,$C35,$T$4:$T$40) -> 0 | K35: 32 | L35: Premios Inter. | M35: SAC | N35: 5 | O35: 5 | P35: Socialización y Apropiacióndel Conocimiento (SAC) | Q35: Recepción de Premios internacionales por resultados derivados del proyecto | R35: Convocatria del premio y Certificado | S35: o | T35: 0
H36: =SUM(H32:H35) -> 0 | K36: 33 | L36: Premios Nac. | M36: SAC | N36: 2.5 | O36: 2.5 | P36: Socialización y Apropiacióndel Conocimiento (SAC) | Q36: Recepción de Premios Nacionales poresultados derivados delproyecto | R36: Convocatria del premio y Certificado | S36: o | T36: 0
K37: 34 | L37: Mat. Divulgativo ISBN | M37: SAC | N37: 2.5 | O37: 0 | P37: Socialización y Apropiacióndel Conocimiento (SAC) | Q37: Publicación de material divulgativo (con ISBN) o publicaciones en revistas no indexadas | R37: Comunicado de sometido ante la Div. de publicaciones o editorial. | S37: o | T37: 0
H38: Max Puntos | K38: 35 | L38: Mat. Divulgativo | M38: SAC | N38: 1.5 | O38: 0 | P38: Socialización y Apropiacióndel Conocimiento (SAC) | Q38: Publicación de material divulgativo (sin ISBN) o publicaciones en revistas no indexadas | R38: Comunicado de sometido ante la Div. de publicaciones o editorial. | S38: o | T38: 0
B39: Cuadro validación de productos por Sigla | F39: =IF(H5="IMP",3,2) -> 2 | G39: =Gp_Max -> NR | H39: =IFERROR(VLOOKUP($G$39,$S$42:$U$49,$F$39,0),0) -> 39 | K39: 36 | L39: Proyecto Coop. Inter. | M39: GI | N39: 12 | O39: 12 | P39: Gestión de Investigación (GI) | Q39: Presentación de nuevo proyecto en la misma temática, para desarrollar en cofinanciación con entidad académica o científica extranjera. Esta nueva propuesta debe estar sometida a alguna convocatoria externa y acompañarse mínimo de Carta de Acuerdo de la entidad con la que se desarrollará la cooperación internacional. | R39: Carta de Acuerdo de la entidad con la que se desarrollará la cooperación internacional. | S39: o | T39: 0
B40: 0 | C40: Puntos | D40: Convocatoria | E40: Sigla | F40: Necesita | G40: Tiene | K40: 37 | L40: Proyecto Coop. Nac. | M40: GI | N40: 6 | O40: 6 | P40: Gestión de Investigación (GI) | Q40: Presentación de nuevo proyecto en la misma temática, para desarrollar en cofinanciación con entidad académica o científica nacional. Esta nueva propuesta debe estar sometida a alguna convocatoria externa y debe acompañarse mínimo de Carta de Acuerdo de la entidad con la que se desarrollará la cooperación nacional | R40: Carta de Acuerdo de la entidad con la que se desarrollará la cooperación nacional | S40: o | T40: =SUMIFS($F$7:$F$27,$C$7:$C$27,$L40) -> 0
B41: 1 | C41: 200 | D41: Alto Impacto | E41: =C32 -> GNC | F41: 1 | G41: =H32 -> 0
B42: 2 | C42: 200 | D42: Alto Impacto | E42: =C33 -> FRH | F42: 1 | G42: =H33 -> 0 | P42: =V_Max-H39 -> -39 | Q42: ="* Supera en "&P42&" el limite de puntos para el tipo de proyecto es "&$H$39&" puntos como máximo" -> * Supera en -39 el limite de puntos para el tipo de proyecto es 39 puntos como máximo | R42: =General!C7 -> Investigación Científica | S42: T | T42: INV | U42: IMP
B43: 3 | C43: 200 | D43: Alto Impacto | E43: =C34 -> SAC | F43: 1 | G43: =H34 -> 0 | Q43: * debe por lo menos tener 20 puntos para cumplir los topes requisto de la convocatoria (INV) | S43: A | T43: 199 | U43: 300
B44: 4 | C44: 200 | D44: Alto Impacto | E44: =C35 -> GI | F44: 1 | G44: =H35 -> 0 | S44: A1 | T44: 199 | U44: 300
B45: 5 | C45: 80 | D45: Investigacion | E45: =E41 -> GNC | F45: 1 | G45: =G41 -> 0 | Q45: En proyectos de investigación no tiene asistentes de graduados. | S45: B | T45: 199 | U45: 300
B46: 6 | C46: =C45 -> 80 | D46: Investigacion | E46: =E42 -> FRH | F46: 1 | G46: =G42 -> 0 | S46: C | T46: 199 | U46: 300
B47: 7 | C47: =C46 -> 80 | D47: Investigacion | E47: SAC | F47: 1 | G47: 0 | S47: D | T47: 59 | U47: 0
B48: 8 | C48: =C47 -> 80 | D48: Investigacion | E48: GI | F48: 0 | G48: 0 | S48: R | T48: 59 | U48: 0
B49: 9 | C49: =C45-20 -> 60 | D49: =D48 -> Investigacion | E49: GNC | F49: 1 | G49: 0 | S49: NR | T49: 39 | U49: 0
B50: 10 | C50: =C46-20 -> 60 | D50: =D49 -> Investigacion | E50: FRH | F50: 1 | G50: 0
B51: 11 | C51: 60 | D51: Investigacion | E51: SAC | F51: 1 | G51: 0
B52: 12 | C52: 60 | D52: Investigacion | E52: GI | F52: 0 | G52: 0
B53: 13 | C53: 40 | D53: Investigacion | E53: GNC | F53: 1 | G53: 0
B54: 14 | C54: 40 | D54: Investigacion | E54: FRH | F54: 1 | G54: 0
B55: 15 | C55: 40 | D55: Investigacion | E55: SAC | F55: 0 | G55: 0
B56: 16 | C56: 40 | D56: Investigacion | E56: GI | F56: 0 | G56: 0
B57: 17 | C57: 20 | D57: Investigacion | E57: GNC | F57: 1 | G57: 0
B58: 18 | C58: 20 | D58: Investigacion | E58: FRH | F58: 0 | G58: 0
B59: 19 | C59: 20 | D59: Investigacion | E59: SAC | F59: 0 | G59: 0
B60: 20 | C60: 20 | D60: Investigacion | E60: GI | F60: 0 | G60: 0

Sheet Integrantes
A1: 8
B3: PRESENTACIÓN DE PROYECTOS DE INVESTIGACIÓN | F3: =General!$H$2 -> Fecha de Emisión: 2017/02/28 | G3: IN-IV-F-14 | M3: Ok | N3: Puntos | O3: IP Max | P3: IP Min | Q3: CO Max | R3: CO Min | S3: CR
F4: =General!$H$3 -> Revision N°: 2 | G4: ="Página "&A1&" de "&Dt_TPG -> Página 8 de 11 | H4: ="Página "&A2&" de "&Dt_TPG -> Página de 11 | J4: 20 | M4: 1 | N4: =S8 -> 0 | O4: =VLOOKUP($M$4,$M$8:$T$23,3,0) -> 8 | P4: =O4-4 -> 4 | Q4: =O4/2 -> 4 | R4: =P4/2 -> 2 | S4: =VLOOKUP($M$4,$M$8:$T$23,2,0) -> 20 | T4: =VLOOKUP($M$4,$M$8:$T$23,8,0) -> 25
A6: 11.- | B6: Investigadores Integrantes del proyecto. | F6: =Cel_TP -> INV | G6: =Cel_Fac -> NT | H6: =V_Max -> 0 | J6: =IF(F6="INV",12,24) -> 12 | W6: * Cuadro para tener relación entre Fincion y Tipo de Vinculo
B8: No | C8: Identificacion | D8: Nombres | E8: Apellidos | F8: Nivel Academico | G8: Mes | H8: Horas | J8: Max | K8: Min | M8: Ok | N8: Puntos | O8: IP Max | P8: IP Min | Q8: CO Max | R8: CO Min | S8: =H6 -> 0 | T8: Valores | W8: Funcion | X8: y | Y8: Vinculo | Z8: Mes | AA8: Fila
B9: 1 | G9: =J6 -> 12 | J9: =O4 -> 8 | K9: =P4 -> 4 | L9: Doc. Carrera TC | M9: =IF(SUM(M10:M23)=0,1,IF(N9=S9,1,0)) -> 1 | N9: 20 | O9: 8 | P9: 4 | Q9: 4 | R9: 2 | S9: =INT(S8/20)*20 -> 0 | T9: 25 | W9: Investigador Principal | X9: =$X$8&"9:"&$X$8&"10" -> y9:y10 | Y9: Doc. Carrera TC | Z9: =G9 -> 12 | AA9: =ROW() -> 9
C10: Funcion : | D10: Investigador Principal | J10: =IFERROR(VLOOKUP($F10,V_IdNBC,2,0),0) -> 0 | L10: Doc. Carrera MT | M10: =IF(N10=S10,1,0) -> 0 | N10: 40 | O10: 12 | P10: 8 | Q10: 6 | R10: 4 | S10: =INT(S9/20)*20 -> 0 | T10: 50 | W10: Investigador Principal | X10: =$X$8&"9:"&$X$8&"10" -> y9:y10 | Y10: Doc. Carrera MT | Z10: =Z9 -> 12 | AA10: =ROW() -> 10
C11: CvLac: | J11: =IF($D10=$W$18,20,IFERROR(VLOOKUP($E10,$Y$8:$Z$19,2,0),$G$9)) -> 12 | M11: 0 | N11: 60 | O11: 16 | P11: 12 | Q11: 8 | R11: 6 | S11: 0 | T11: 75 | W11: Coinvestigador | X11: =$X$8&"11:"&$X$8&"14" -> y11:y14 | Y11: Doc. Carrera TC | Z11: =Z10 -> 12 | AA11: =ROW() -> 11
B12: 2 | J12: =IF($E13=$Y$14,IF($D13=$W$15,0,40),IF($D13="Coinvestigador",J$9/2,40)) -> 40 | K12: =IF(E13=$Y$14,0,IF($D13="Coinvestigador",K$9/2,0)) -> 0 | M12: 0 | N12: 80 | O12: 20 | P12: 16 | Q12: 10 | R12: 8 | S12: 0 | T12: 100 | W12: Coinvestigador | X12: =$X$8&"11:"&$X$8&"14" -> y11:y14 | Y12: Doc. Carrera MT | Z12: =Z11 -> 12 | AA12: =ROW() -> 12
B13: =+B12 -> 2 | C13: Funcion : | J13: =IFERROR(VLOOKUP($F13,V_IdNBC,2,0),0) -> 0 | M13: 0 | N13: =N12+20 -> 100 | O13: =O12 -> 20 | P13: 16 | Q13: 10 | R13: 8 | S13: 0 | T13: 100 | W13: Coinvestigador | X13: =$X$8&"11:"&$X$8&"14" -> y11:y14 | Y13: Doc. Ocasional | Z13: 10 | AA13: =ROW() -> 13
B14: =+B13 -> 2 | C14: CvLac: | J14: =IF($D13=$W$18,20,IFERROR(VLOOKUP($E13,$Y$8:$Z$19,2,0),$G$9)) -> 12 | M14: 0 | N14: =N13+20 -> 120 | O14: 20 | P14: 16 | Q14: 10 | R14: 8 | S14: 0 | T14: 100 | W14: Coinvestigador | X14: =$X$8&"11:"&$X$8&"14" -> y11:y14 | Y14: Externo a la UMNG | Z14: =Z12 -> 12 | AA14: =ROW() -> 14
B15: =B12+1 -> 3 | J15: =IF($E16=$Y$14,IF($D16=$W$15,0,40),IF($D16="Coinvestigador",J$9/2,40)) -> 40 | K15: =IF(E16=$Y$14,0,IF($D16="Coinvestigador",K$9/2,0)) -> 0 | M15: 0 | N15: =N14+20 -> 140 | O15: 20 | P15: 16 | Q15: 10 | R15: 8 | S15: 0 | T15: 100 | W15: Asesor | X15: =$X$8&AA15&":"&$X$8&AA15 -> y15:y15 | Y15: Externo a la UMNG | Z15: =Z14 -> 12 | AA15: =ROW() -> 15
B16: =+B15 -> 3 | C16: Funcion : | J16: =IFERROR(VLOOKUP($F16,V_IdNBC,2,0),0) -> 0 | M16: 0 | N16: =N15+20 -> 160 | O16: 20 | P16: 16 | Q16: 10 | R16: 8 | S16: 0 | T16: 100 | W16: Asistente OPS | X16: =$X$8&AA16&":"&$X$8&AA16 -> y16:y16 | Y16: OPS - Prestación Servicios | Z16: 10 | AA16: =ROW() -> 16
B17: =+B16 -> 3 | C17: CvLac: | J17: =IF($D16=$W$18,20,IFERROR(VLOOKUP($E16,$Y$8:$Z$19,2,0),$G$9)) -> 12 | M17: 0 | N17: =N16+20 -> 180 | O17: 20 | P17: 16 | Q17: 10 | R17: 8 | S17: 0 | T17: 100 | W17: Joven Investigador | X17: =$X$8&AA17&":"&$X$8&AA17 -> y17:y17 | Y17: OPS - Prestación Servicios | Z17: 10 | AA17: =ROW() -> 17
B18: =B15+1 -> 4 | J18: =IF($E19=$Y$14,IF($D19=$W$15,0,40),IF($D19="Coinvestigador",J$9/2,40)) -> 40 | K18: =IF(E19=$Y$14,0,IF($D19="Coinvestigador",K$9/2,0)) -> 0 | M18: 0 | N18: 200 | O18: 24 | P18: 20 | Q18: 12 | R18: 10 | S18: 0 | T18: 250 | W18: Asistente Graduado | X18: =$X$8&AA18&":"&$X$8&AA18 -> y18:y18 | Y18: OPS - Prestación Servicios | Z18: 10 | AA18: =ROW() -> 18
B19: =+B18 -> 4 | C19: Funcion : | J19: =IFERROR(VLOOKUP($F19,V_IdNBC,2,0),0) -> 0 | M19: 0 | N19: =N18+20 -> 220 | O19: 24 | P19: 20 | Q19: 12 | R19: 10 | S19: =INT(S18/20)*20 -> 0 | T19: 250 | W19: Estudiante | X19: =$X$8&AA19&":"&$X$8&AA19 -> y19:y19 | Y19: Auxiliar de Investigación | Z19: 10 | AA19: =ROW() -> 19
B20: =+B19 -> 4 | C20: CvLac: | J20: =IF($D19=$W$18,20,IFERROR(VLOOKUP($E19,$Y$8:$Z$19,2,0),$G$9)) -> 12 | M20: 0 | N20: =N19+20 -> 240 | O20: 24 | P20: 20 | Q20: 12 | R20: 10 | S20: =INT(S19/20)*20 -> 0 | T20: 250
B21: =B18+1 -> 5 | J21: =IF($E22=$Y$14,IF($D22=$W$15,0,40),IF($D22="Coinvestigador",J$9/2,40)) -> 40 | K21: =IF(E22=$Y$14,0,IF($D22="Coinvestigador",K$9/2,0)) -> 0 | M21: 0 | N21: =N20+20 -> 260 | O21: 24 | P21: 20 | Q21: 12 | R21: 10 | S21: =INT(S20/20)*20 -> 0 | T21: 250
B22: =+B21 -> 5 | C22: Funcion : | J22: =IFERROR(VLOOKUP($F22,V_IdNBC,2,0),0) -> 0 | M22: 0 | N22: =N21+20 -> 280 | O22: 24 | P22: 20 | Q22: 12 | R22: 10 | S22: =INT(S21/20)*20 -> 0 | T22: 250
B23: =+B22 -> 5 | C23: CvLac: | J23: =IF($D22=$W$18,20,IFERROR(VLOOKUP($E22,$Y$8:$Z$19,2,0),$G$9)) -> 12 | M23: 0 | N23: =N22+20 -> 300 | O23: 24 | P23: 20 | Q23: 12 | R23: 10 | S23: =INT(S22/20)*20 -> 0 | T23: 250
B24: =B21+1 -> 6 | J24: =IF($E25=$Y$14,IF($D25=$W$15,0,40),IF($D25="Coinvestigador",J$9/2,40)) -> 40 | K24: =IF(E25=$Y$14,0,IF($D25="Coinvestigador",K$9/2,0)) -> 0
B25: =+B24 -> 6 | C25: Funcion : | J25: =IFERROR(VLOOKUP($F25,V_IdNBC,2,0),0) -> 0 | M25: N | N25: Tipos | O25: 1 | P25: 2 | Q25: 3 | R25: No | W25: Clasificación de grupo máximo asociado a la propuesta | Z25: =Gp_Max -> NR
B26: =+B25 -> 6 | C26: CvLac: | J26: =IF($D25=$W$18,20,IFERROR(VLOOKUP($E25,$Y$8:$Z$19,2,0),$G$9)) -> 12 | M26: 1 | N26: Investigador Principal | R26: =COUNTIF($D$10:$D$38,$N26) -> 1 | Z26: Inv IP
B27: =B24+1 -> 7 | J27: =IF($E28=$Y$14,IF($D28=$W$15,0,40),IF($D28="Coinvestigador",J$9/2,40)) -> 40 | K27: =IF(E28=$Y$14,0,IF($D28="Coinvestigador",K$9/2,0)) -> 0 | M27: 2 | N27: Coinvestigador | R27: =COUNTIF($D$10:$D$38,$N27) -> 0 | W27: Grupos | X27: Millon | Y27: Entre | Z27: Max | AA27: Min
B28: =+B27 -> 7 | C28: Funcion : | J28: =IFERROR(VLOOKUP($F28,V_IdNBC,2,0),0) -> 0 | M28: 3 | N28: Asistente OPS | R28: 0 | W28: Avalados | X28: 25 | Y28: 20- 39 | Z28: 8 | AA28: 4
B29: =+B28 -> 7 | C29: CvLac: | J29: =IF($D28=$W$18,20,IFERROR(VLOOKUP($E28,$Y$8:$Z$19,2,0),$G$9)) -> 12 | M29: 4 | N29: Joven Investigador | R29: 0 | W29: Reconocidos | X29: 50 | Y29: 40-59 | Z29: 12 | AA29: 8
B30: =B27+1 -> 8 | J30: =IF($E31=$Y$14,IF($D31=$W$15,0,40),IF($D31="Coinvestigador",J$9/2,40)) -> 40 | K30: =IF(E31=$Y$14,0,IF($D31="Coinvestigador",K$9/2,0)) -> 0 | M30: 5 | N30: Asistente Graduado | R30: 0 | W30: Mayores de Cat. C | X30: 75 | Y30: 60-79 | Z30: 16 | AA30: 12
B31: =+B30 -> 8 | C31: Funcion : | J31: =IFERROR(VLOOKUP($F31,V_IdNBC,2,0),0) -> 0 | M31: 6 | N31: Asesor | R31: 0 | W31: Mayores de Cat. C | X31: 100 | Y31: 80-199 | Z31: 20 | AA31: 16
B32: =+B31 -> 8 | C32: CvLac: | J32: =IF($D31=$W$18,20,IFERROR(VLOOKUP($E31,$Y$8:$Z$19,2,0),$G$9)) -> 12 | M32: 7 | N32: Estudiante | R32: 0 | W32: IMP | X32: 250 | Y32: 200-300 | Z32: 24 | AA32: 10
B33: =B30+1 -> 9 | J33: =IF($E34=$Y$14,IF($D34=$W$15,0,40),IF($D34="Coinvestigador",J$9/2,40)) -> 40 | K33: =IF(E34=$Y$14,0,IF($D34="Coinvestigador",K$9/2,0)) -> 0
B34: =+B33 -> 9 | C34: Funcion : | J34: =IFERROR(VLOOKUP($F34,V_IdNBC,2,0),0) -> 0
B35: =+B34 -> 9 | C35: CvLac: | J35: =IF($D34=$W$18,20,IFERROR(VLOOKUP($E34,$Y$8:$Z$19,2,0),$G$9)) -> 12
B36: =B33+1 -> 10 | J36: =IF($E37=$Y$14,IF($D37=$W$15,0,40),IF($D37="Coinvestigador",J$9/2,40)) -> 40 | K36: =IF(E37=$Y$14,0,IF($D37="Coinvestigador",K$9/2,0)) -> 0
B37: =+B36 -> 10 | C37: Funcion : | J37: =IFERROR(VLOOKUP($F37,V_IdNBC,2,0),0) -> 0
B38: =+B37 -> 10 | C38: CvLac: | J38: =IF($D37=$W$18,20,IFERROR(VLOOKUP($E37,$Y$8:$Z$19,2,0),$G$9)) -> 12

Sheet Presupuesto
A1: 9
B3: PRESENTACIÓN DE PROYECTOS DE INVESTIGACIÓN | H3: =General!$H$2 -> Fecha de Emisión: 2017/02/28 | I3: =General!$I$2 -> IN-IV-F-14
H4: =General!$H$3 -> Revision N°: 2 | I4: ="Página "&$A$1&" de "&Dt_TPG -> Página 9 de 11
B7: T | C7: Título de la Propuesta : | D7: =General!B9 -> 0
B8: L | C8: Lider responsable | D8: =General!C10 -> 0 | G8: Codigo VICEIN:
A10: 12.- | B10: Presupuesto rubro personal asocidado a la propuesta | G10: =V_Max -> 0 | H10: =Cel_TP -> INV | I10: =Gp_Max -> NR
I11: 1.66
B12: a. | C12: Personal de planta o ocasional que integra al proyecto de investigación. | H12: Valores de Contrapartida.
A13: =ROW() -> 13 | B13: N° | C13: Sueldo Neto | D13: Factor | E13: Tipo de Vinculo UMNG | F13: Numero de meses | G13: Número Horas / Semanal | H13: Valor Final | I13: Identificación | L13: *tabla de consolidacion por año para proyectos IMP
B14: =ROW()-$A$13 -> 1 | D14: =I11 -> 1.66 | E14: =INDIRECT($I$24&"E"&$J14+1,1) -> 0 | F14: =INDIRECT($I$24&"G"&$J14,1) -> 12 | G14: =INDIRECT($I$24&"H"&$J14,1) -> 0 | H14: =INT((C14*F14)/40)*G14*$I$11 -> 0 | I14: =INDIRECT($I$24&"C"&$J14,1) -> 0 | J14: 9 | L14: 0 | M14: Tipo Vinculo UMNG | N14: Año1 | O14: Año2
B15: =ROW()-$A$13 -> 2 | D15: =D14 -> 1.66 | E15: 0 | F15: 0 | G15: 0 | H15: =INT((C15*F15)/40)*G15*$I$11 -> 0 | I15: 0 | J15: =J14+3 -> 12 | L15: 1 | M15: Doc. Carrera TC | N15: =(SUMIF($E$14:$E$23,$M15,$H$14:$H$23)/2) -> 0 | O15: =N15 -> 0
B16: 3 | D16: =D15 -> 1.66 | E16: 0 | F16: 0 | G16: 0 | H16: 0 | I16: 0 | J16: =J15+3 -> 15 | L16: 2 | M16: Doc. Carrera MT | N16: =(SUMIF($E$14:$E$23,$M16,$H$14:$H$23)/2) -> 0 | O16: =N16 -> 0
B17: 4 | D17: 1.66 | E17: 0 | F17: 0 | G17: 0 | H17: 0 | I17: 0 | J17: 18 | L17: 3 | M17: Doc. Ocasional | N17: =SUMIF($E$14:$E$23,$M17,$H$14:$H$23) -> 0 | O17: 0
B18: 5 | D18: 1.66 | E18: 0 | F18: 0 | G18: 0 | H18: 0 | I18: 0 | J18: 21 | L18: 1 | M18: Contrapartida Facultad IMP: | N18: =SUM(N15:N17) -> 0 | O18: =SUM(O15:O17) -> 0
B19: 6 | D19: 1.66 | E19: 0 | F19: 0 | G19: 0 | H19: 0 | I19: 0 | J19: 24 | L19: 2 | M19: Contrapartida Facultad INV: | N19: =SUM(N15:O17) -> 0
B20: 7 | D20: 1.66 | E20: 0 | F20: 0 | G20: 0 | H20: 0 | I20: 0 | J20: 27
B21: 8 | D21: 1.66 | E21: 0 | F21: 0 | G21: 0 | H21: 0 | I21: 0 | J21: 30 | M21: Validación IMP OK Grupo | N21: A
B22: 9 | D22: 1.66 | E22: 0 | F22: 0 | G22: 0 | H22: 0 | I22: 0 | J22: 33 | N22: A1
B23: 10 | D23: 1.66 | E23: 0 | F23: 0 | G23: 0 | H23: 0 | I23: 0 | J23: 36 | N23: B
C24: Sumatoria del calculo de personal de planta "Valor contrapartida Facultades": | H24: =SUBTOTAL(109,H14:H23) -> 0 | I24: Integrantes! | M24: Incremento al salario | N24: C
M25: 0
B26: b. | C26: Asistentes externos o temporales contratados por (OPS) y/o hora cadedra. | M26: Valor SMLV | N26: Max Mes
B27: > | C27: Salario Minimo Legal Vigente (SMIV) : | F27: 737717 | H27: 36885850 | M27: =F27*(1+M25) -> 737717 | N27: =INT(Integrantes!J6/10)*10 -> 10
A29: =ROW() -> 29 | B29: No | C29: Valor mensual del contrato | D29: Factor | E29: Tipo de vinculación | F29: Numero de meses | G29: Número Horas / Semanal | H29: Valor total de contrato | I29: Valores de entidades externas | L29: No | M29: Tipo | N29: Valor total del contrato (10 mes) | O29: SMMLV | P29: Valor mes contrato | Q29: Cuantos
B30: =ROW()-$A$29 -> 1 | C30: =IFERROR(VLOOKUP($E30,$M$29:$P$38,4,0),0) -> 0 | D30: =IFERROR(VLOOKUP($E30,$M$29:$O$37,3,0)/10,0) -> 0 | F30: 1 | G30: 1 | H30: =IF($E30=$M$38,$N$38,(F30*C30)/40*G30) -> 0 | J30: =IFERROR(VLOOKUP($E30,$M$29:$O$38,2,0),0)*IF($H$10="IMP",2,1) -> 0 | L30: 1 | M30: Técnico | N30: =$M$27*O30 -> 14754340 | O30: 20 | P30: =N30/10 -> 1475434 | Q30: =COUNTIF($E$30:$E$42,M30) -> 0
B31: =ROW()-$A$29 -> 2 | C31: =IFERROR(VLOOKUP($E31,$M$29:$P$38,4,0),0) -> 0 | D31: 0 | F31: 1 | G31: 1 | H31: =IF($E31=$M$38,$N$38,(F31*C31)/40*G31) -> 0 | J31: =IFERROR(VLOOKUP($E31,$M$29:$O$38,2,0),0)*IF($H$10="IMP",2,1) -> 0 | L31: 2 | M31: Profesional | N31: 25820095 | O31: 35 | P31: =N31/10 -> 2582009.5 | Q31: =COUNTIF($E$30:$E$42,M31) -> 0
B32: 3 | C32: 0 | D32: 0 | F32: 1 | G32: 1 | H32: 0 | J32: 0 | L32: 3 | M32: Profesional especilizado | N32: 29508680 | O32: 40 | P32: 2950868 | Q32: 0
B33: 4 | C33: 0 | D33: 0 | F33: 1 | G33: 1 | H33: 0 | J33: 0 | L33: 4 | M33: Profesional magister | N33: 33197265 | O33: 45 | P33: 3319726.5 | Q33: 0
B34: 5 | C34: 0 | D34: 0 | F34: 1 | G34: 1 | H34: 0 | J34: 0 | L34: 5 | M34: Profesional doctorado | N34: 40574435 | O34: 55 | P34: 4057443.5 | Q34: 0
B35: 6 | C35: 0 | D35: 0 | F35: 1 | G35: 1 | H35: 0 | J35: 0 | L35: 6 | M35: Joven investigador | N35: 25820095 | O35: 35 | P35: 2582009.5 | Q35: 0
B36: 7 | C36: 0 | D36: 0 | F36: 1 | G36: 1 | H36: 0 | J36: 0 | L36: 7 | M36: Asistente graduado magister | N36: 36885850 | O36: 50 | P36: 3688585 | Q36: 0
B37: 8 | C37: 0 | D37: 0 | F37: 1 | G37: 1 | H37: 0 | J37: 0 | L37: 8 | M37: Asistente graduado doctorado | N37: 51640190 | O37: 70 | P37: 5164019 | Q37: 0
B38: 9 | C38: 0 | D38: 0 | F38: 1 | G38: 1 | H38: 0 | J38: 0 | L38: 9 | M38: Auxiliar de Investigación | N38: 2213151 | O38: 3 | P38: 221315.1 | Q38: 0
B39: 10 | C39: 0 | D39: 0 | F39: 1 | G39: 1 | H39: 0 | J39: 0
B40: 11 | C40: 0 | D40: 0 | F40: 1 | G40: 1 | H40: 0 | J40: 0
B41: 12 | C41: 0 | D41: 0 | F41: 1 | G41: 1 | H41: 0 | J41: 0 | N41: Salario 12 meses
B42: 13 | C42: 0 | D42: 0 | F42: 1 | G42: 1 | H42: 0 | J42: 0 | M42: Joven investigador Colciencias | N42: =M27*3*12 -> 26557812
C43: Sumatoria del calculo de OPS "Valor financiado Vicein" en rubro de (Personal): | G43: =IF(H43>M78,"Esta superando el total de presupuesto","") ->  | H43: =SUM(H30:H42) -> 0 | I43: 0
L44: Instrucción ver Comentario… OJO VER EN ESTO IMP
A45: 13.- | B45: Presupuesto detalle de Plan de compras general | I45: =General!I52 -> 0 | L45: 1 | M45: Para IMP - Contrapartida Facultad Año 1 es : | O45: =N18 -> 0
L46: 2 | M46: Para IMP - Contrapartida Facultad Año 2 es : | O46: =O18 -> 0
B47: =IFERROR("Nota : "&VLOOKUP(I10,Dt_Limite,3,0)," ") -> Nota : Puede aplicar hasta 25 millones de presupuesto dependiendo los puntos comprometidos | L47: 3 | M47: Para Presupuesto $ VICEIN la mitad de OPS es : | O47: =H43/2 -> 0
C48: * En proyectos IMP se debe discriminar por año el presupuesto a utilizar sin superar el la mitad del total. | L48: Consulte sobre los items
A49: =ROW() -> 49 | B49: No | C49: Rubro | D49: Año ejecu-ción | E49: Descripción | G49: Finaciación Vicein $ | H49: Contrapartida Facultad $ | I49: Contrapartida Otros $ | L49: No | M49: Nombre Rubro | N49: Rubro | O49: Limite% | P49: =M78 -> 25000000 | Q49: Solicitado $Vicein
B50: =ROW()-$A$49 -> 1 | C50: Personal | D50: 1 | H50: =H24 -> 0 | L50: 1 | M50: Personal | N50: 611401 | O50: 1 | P50: =SUMIF($C$49:$C$70,$M50,$G$49:$G$70) -> 0 | Q50: =P50/$P$49 -> 0
B51: =ROW()-$A$49 -> 2 | D51: 1 | L51: 2 | M51: Equipos | N51: 632 | O51: 1 | P51: =SUMIF($C$49:$C$70,$M51,$G$49:$G$70) -> 0 | Q51: =P51/$P$49 -> 0
B52: 3 | D52: 1 | L52: 3 | M52: Equipos transformables | N52: 632 | O52: 1 | P52: 0 | Q52: 0
B53: 4 | D53: 1 | L53: 4 | M53: Software | N53: 612102 | O53: 1 | P53: 0 | Q53: 0
B54: 5 | D54: 1 | L54: 5 | M54: Materiales | N54: 612101 | O54: 1 | P54: 0 | Q54: 0
B55: 6 | D55: 1 | L55: 6 | M55: Materiales (Papelería) | N55: 612101 | O55: 0.01 | P55: 0 | Q55: 0
B56: 7 | D56: 1 | L56: 7 | M56: Salidas de Campo | N56: 612104 | O56: 0.1 | P56: 0 | Q56: 0
B57: 8 | D57: 1 | L57: 8 | M57: Servicios Técnicos | N57: 612103 | O57: 1 | P57: 0 | Q57: 0
B58: 9 | D58: 1 | L58: 9 | M58: Recursos Biblograficos | N58: 633 | O58: 1 | P58: 0 | Q58: 0
B59: 10 | D59: 1 | L59: 10 | M59: Impresos y Publicaciones | N59: 612106 | O59: 1 | P59: 0 | Q59: 0
B60: 11 | D60: 1 | L60: 11 | M60: Movilidad | N60: 635020 | O60: 0.2 | P60: 0 | Q60: 0
B61: 12 | D61: 1 | L61: 12 | M61: Viajes | Q61: 0
B62: 13 | D62: 1 | L62: 13 | M62: Mantenimiento | Q62: 0
B63: 14 | D63: 1 | L63: 14 | M63: Administración | Q63: 0
B64: 15 | D64: 1 | L64: 15 | M64: Construcciones | Q64: 0
B65: 16 | D65: 1 | L65: 16 | M65: Otros Gastos | Q65: 0
B66: 17 | D66: 1 | M66: Si cambio
B67: 18 | D67: 1
B68: 19 | D68: 1 | L68: Validación $ Vicein Maximo 2018 | P68: 25 | Q68: 20
B69: 20 | D69: 1 | L69: 1 | M69: Puntos Comprometidos : | N69: =V_Max -> 0 | P69: 50 | Q69: 40
C71: Sumatoria general de plan de compras : | F71: =SUM(G71:I71) -> 0 | G71: =SUM(G72:G73) -> 0 | H71: =SUM(H72:H73) -> 0 | I71: =SUM(I72:I73) -> 0 | L71: 2 | M71: Franja de Presupuesto en puntos : | N71: =Integrantes!S4 -> 20 | P71: 75 | Q71: 60
D72: 1 | E72: Total Presupuesto Año 1 : | G72: =IF(Cel_TP="IMP",SUMIF($D$50:$D$70,$D72,G$50:G$70),SUM(G$50:G$70)) -> 0 | H72: =SUMIF($D$50:$D$70,$D72,H$50:H$70) -> 0 | I72: =SUMIF($D$50:$D$70,$D72,I$50:I$70) -> 0 | L72: 3 | M72: Maximo $Vicein por Puntos en Millones | N72: =Integrantes!T4 -> 25 | P72: 100 | Q72: 80
D73: 2 | E73: Total Presupuesto Año 2 : | G73: =SUMIF($D$50:$D$70,$D73,G$50:G$70) -> 0 | H73: =SUMIF($D$50:$D$70,$D73,H$50:H$70) -> 0 | I73: =SUMIF($D$50:$D$70,$D73,I$50:I$70) -> 0 | L73: 4 | M73: Maximo $Vicein por Puntos en Millones Grupo | N73: =IFERROR(VLOOKUP(I10,Dt_Limite,2,0),0) -> 25 | P73: 250 | Q73: 200
E74: =IF(G74>0,"Presupuesto por definir."," Error - Supero el presupuesto en : ") -> Presupuesto por definir. | G74: =E119-G71 -> 25000000 | L74: 4 | M74: Tipo Convocatoria es : | N74: =General!C7 -> Investigación Científica
E75: Limite de presupuesto VICEIN por año : | G75: =IFERROR(IF($H$10="IMP",$M$78/2,$M$78),"0") -> 25000000
L77: =General!I17 ->  | M77: Valor maximo INV por clasificacion de Grupo
B78: No | C78: Rubro | D78: % | E78: Porcentaje | F78: $ Financiación solicitada a VICEIN | G78: $ Contrapartida Facultad | H78: $ Contrapartida Externa | I78: $ Total Rubro | J78: 0 | M78: =IFERROR(IF(H10="IMP",250,N78)*1000000,0) -> 25000000 | N78: =MIN(N72:N73) -> 25 | O78: =VLOOKUP($N$78,$P$68:$Q$74,2,0) -> 20
B79: 1 | C79: =C81 -> Personal | D79: =IFERROR(F79/F81,0) -> 0 | E79: =D79 -> 0 | F79: =SUMIFS(G$49:G$70,$C$49:$C$70,$C79,$D$49:$D$70,$J79) -> 0 | G79: 0 | H79: 0 | I79: =SUM(F79:H79) -> 0 | J79: 1 | K79: =VLOOKUP($B80,$L$49:$Q$65,4,0) -> 
C80: =C81 -> Personal | D80: =IFERROR(F79/F81,0) -> 0 | E80: 0 | F80: 0 | G80: 0 | H80: 0 | I80: =SUM(F80:H80) -> 0 | J80: 2 | K80: =VLOOKUP($B81,$L$49:$Q$65,4,0) -> 
C81: =M50 -> Personal | D81: =IFERROR(VLOOKUP($B79,$L$49:$Q$65,6,0),0) -> 0 | E81: 0 | F81: =SUM(F79:F80) -> 0 | G81: =SUM(G79:G80) -> 0 | H81: =SUM(H79:H80) -> 0 | I81: 0 | J81: 3 | K81: =VLOOKUP($B79,$L$49:$Q$65,4,0) -> 1
B82: 2 | C82: =C84 -> Equipos | D82: =IFERROR(F82/F84,0) -> 0 | E82: 0 | F82: =SUMIFS(G$49:G$70,$C$49:$C$70,$C82,$D$49:$D$70,$J82) -> 0 | G82: 0 | H82: 0 | I82: 0 | J82: =J79 -> 1 | K82: =VLOOKUP($B83,$L$49:$Q$65,4,0) -> 
C83: =C84 -> Equipos | D83: =IFERROR(F82/F84,0) -> 0 | E83: 0 | F83: 0 | G83: 0 | H83: 0 | I83: 0 | J83: =J80 -> 2 | K83: =VLOOKUP($B84,$L$49:$Q$65,4,0) -> 
C84: =M51 -> Equipos | D84: =IFERROR(VLOOKUP($B82,$L$49:$Q$65,6,0),0) -> 0 | E84: 0 | F84: =SUM(F82:F83) -> 0 | G84: =SUM(G82:G83) -> 0 | H84: =SUM(H82:H83) -> 0 | I84: =SUM(F84:H84) -> 0 | J84: =J81 -> 3 | K84: =VLOOKUP($B82,$L$49:$Q$65,4,0) -> 1
B85: 3 | C85: =C87 -> Equipos transformables | D85: =IFERROR(F85/F87,0) -> 0 | E85: 0 | F85: =SUMIFS(G$49:G$70,$C$49:$C$70,$C85,$D$49:$D$70,$J85) -> 0 | G85: 0 | H85: 0 | I85: 0 | J85: 1 | K85: =VLOOKUP($B86,$L$49:$Q$65,4,0) -> 
C86: =C87 -> Equipos transformables | D86: =IFERROR(F85/F87,0) -> 0 | E86: 0 | F86: 0 | G86: 0 | H86: 0 | I86: 0 | J86: 2 | K86: =VLOOKUP($B87,$L$49:$Q$65,4,0) -> 1
B87: 3 | C87: =M52 -> Equipos transformables | D87: =IFERROR(VLOOKUP($B85,$L$49:$Q$65,6,0),0) -> 0 | E87: 0 | F87: =SUM(F85:F86) -> 0 | G87: =SUM(G85:G86) -> 0 | H87: =SUM(H85:H86) -> 0 | I87: =SUM(F87:H87) -> 0 | J87: 3 | K87: =VLOOKUP($B85,$L$49:$Q$65,4,0) -> 1
B88: 4 | C88: =C90 -> Software | D88: =IFERROR(F88/F90,0) -> 0 | E88: 0 | F88: =SUMIFS(G$49:G$70,$C$49:$C$70,$C88,$D$49:$D$70,$J88) -> 0 | G88: 0 | H88: 0 | I88: 0 | J88: 1 | K88: =VLOOKUP($B89,$L$49:$Q$65,4,0) -> 
C89: =C90 -> Software | D89: =IFERROR(F88/F90,0) -> 0 | E89: 0 | F89: 0 | G89: 0 | H89: 0 | I89: 0 | J89: 2 | K89: =VLOOKUP($B90,$L$49:$Q$65,4,0) -> 1
B90: 4 | C90: =M53 -> Software | D90: =IFERROR(VLOOKUP($B88,$L$49:$Q$65,6,0),0) -> 0 | E90: 0 | F90: =SUM(F88:F89) -> 0 | G90: =SUM(G88:G89) -> 0 | H90: =SUM(H88:H89) -> 0 | I90: =SUM(F90:H90) -> 0 | J90: 3 | K90: =VLOOKUP($B88,$L$49:$Q$65,4,0) -> 1
B91: 5 | C91: =C93 -> Materiales | D91: =IFERROR(F91/F93,0) -> 0 | E91: 0 | F91: =SUMIFS(G$49:G$70,$C$49:$C$70,$C91,$D$49:$D$70,$J91) -> 0 | G91: 0 | H91: 0 | I91: 0 | J91: 1 | K91: =VLOOKUP($B92,$L$49:$Q$65,4,0) -> 
C92: =C93 -> Materiales | D92: =IFERROR(F91/F93,0) -> 0 | E92: 0 | F92: 0 | G92: 0 | H92: 0 | I92: 0 | J92: 2 | K92: =VLOOKUP($B93,$L$49:$Q$65,4,0) -> 1
B93: 5 | C93: =M54 -> Materiales | D93: =IFERROR(VLOOKUP($B91,$L$49:$Q$65,6,0),0) -> 0 | E93: 0 | F93: =SUM(F91:F92) -> 0 | G93: =SUM(G91:G92) -> 0 | H93: =SUM(H91:H92) -> 0 | I93: =SUM(F93:H93) -> 0 | J93: 3 | K93: =VLOOKUP($B91,$L$49:$Q$65,4,0) -> 1
B94: 6 | C94: =C96 -> Materiales (Papelería) | D94: =IFERROR(F94/F96,0) -> 0 | E94: 0 | F94: =SUMIFS(G$49:G$70,$C$49:$C$70,$C94,$D$49:$D$70,$J94) -> 0 | G94: 0 | H94: 0 | I94: 0 | J94: 1 | K94: =VLOOKUP($B95,$L$49:$Q$65,4,0) -> 
C95: =C96 -> Materiales (Papelería) | D95: =IFERROR(F94/F96,0) -> 0 | E95: 0 | F95: 0 | G95: 0 | H95: 0 | I95: 0 | J95: 2 | K95: =VLOOKUP($B96,$L$49:$Q$65,4,0) -> 0.01
B96: 6 | C96: =M55 -> Materiales (Papelería) | D96: =IFERROR(VLOOKUP($B94,$L$49:$Q$65,6,0),0) -> 0 | E96: 0 | F96: =SUM(F94:F95) -> 0 | G96: =SUM(G94:G95) -> 0 | H96: =SUM(H94:H95) -> 0 | I96: =SUM(F96:H96) -> 0 | J96: 3 | K96: =VLOOKUP($B94,$L$49:$Q$65,4,0) -> 0.01
B97: 7 | C97: =C99 -> Salidas de Campo | D97: =IFERROR(F97/F99,0) -> 0 | E97: 0 | F97: =SUMIFS(G$49:G$70,$C$49:$C$70,$C97,$D$49:$D$70,$J97) -> 0 | G97: 0 | H97: 0 | I97: 0 | J97: 1 | K97: =VLOOKUP($B98,$L$49:$Q$65,4,0) -> 
C98: =C99 -> Salidas de Campo | D98: =IFERROR(F97/F99,0) -> 0 | E98: 0 | F98: 0 | G98: 0 | H98: 0 | I98: 0 | J98: 2 | K98: =VLOOKUP($B99,$L$49:$Q$65,4,0) -> 0.1
B99: 7 | C99: =M56 -> Salidas de Campo | D99: =IFERROR(VLOOKUP($B97,$L$49:$Q$65,6,0),0) -> 0 | E99: 0 | F99: =SUM(F97:F98) -> 0 | G99: =SUM(G97:G98) -> 0 | H99: =SUM(H97:H98) -> 0 | I99: =SUM(F99:H99) -> 0 | J99: 3 | K99: =VLOOKUP($B97,$L$49:$Q$65,4,0) -> 0.1
B100: 8 | C100: =C102 -> Servicios Técnicos | D100: =IFERROR(F100/F102,0) -> 0 | E100: 0 | F100: =SUMIFS(G$49:G$70,$C$49:$C$70,$C100,$D$49:$D$70,$J100) -> 0 | G100: 0 | H100: 0 | I100: 0 | J100: 1 | K100: =VLOOKUP($B101,$L$49:$Q$65,4,0) -> 
C101: =C102 -> Servicios Técnicos | D101: =IFERROR(F100/F102,0) -> 0 | E101: 0 | F101: 0 | G101: 0 | H101: 0 | I101: 0 | J101: 2 | K101: =VLOOKUP($B102,$L$49:$Q$65,4,0) -> 1
B102: 8 | C102: =M57 -> Servicios Técnicos | D102: =IFERROR(VLOOKUP($B100,$L$49:$Q$65,6,0),0) -> 0 | E102: 0 | F102: =SUM(F100:F101) -> 0 | G102: =SUM(G100:G101) -> 0 | H102: =SUM(H100:H101) -> 0 | I102: =SUM(F102:H102) -> 0 | J102: 3 | K102: =VLOOKUP($B100,$L$49:$Q$65,4,0) -> 1
B103: 9 | C103: =C105 -> Recursos Biblograficos | D103: =IFERROR(F103/F105,0) -> 0 | E103: 0 | F103: =SUMIFS(G$49:G$70,$C$49:$C$70,$C103,$D$49:$D$70,$J103) -> 0 | G103: 0 | H103: 0 | I103: 0 | J103: 1 | K103: =VLOOKUP($B104,$L$49:$Q$65,4,0) -> 
C104: =C105 -> Recursos Biblograficos | D104: =IFERROR(F103/F105,0) -> 0 | E104: 0 | F104: 0 | G104: 0 | H104: 0 | I104: 0 | J104: 2 | K104: =VLOOKUP($B105,$L$49:$Q$65,4,0) -> 1
B105: 9 | C105: =M58 -> Recursos Biblograficos | D105: =IFERROR(VLOOKUP($B103,$L$49:$Q$65,6,0),0) -> 0 | E105: 0 | F105: =SUM(F103:F104) -> 0 | G105: =SUM(G103:G104) -> 0 | H105: =SUM(H103:H104) -> 0 | I105: =SUM(F105:H105) -> 0 | J105: 3 | K105: =VLOOKUP($B103,$L$49:$Q$65,4,0) -> 1
B106: 10 | C106: =C108 -> Impresos y Publicaciones | D106: =IFERROR(F106/F108,0) -> 0 | E106: 0 | F106: =SUMIFS(G$49:G$70,$C$49:$C$70,$C106,$D$49:$D$70,$J106) -> 0 | G106: 0 | H106: 0 | I106: 0 | J106: 1 | K106: =VLOOKUP($B107,$L$49:$Q$65,4,0) -> 
C107: =C108 -> Impresos y Publicaciones | D107: =IFERROR(F106/F108,0) -> 0 | E107: 0 | F107: 0 | G107: 0 | H107: 0 | I107: 0 | J107: 2 | K107: =VLOOKUP($B108,$L$49:$Q$65,4,0) -> 1
B108: 10 | C108: =M59 -> Impresos y Publicaciones | D108: =IFERROR(VLOOKUP($B106,$L$49:$Q$65,6,0),0) -> 0 | E108: 0 | F108: =SUM(F106:F107) -> 0 | G108: =SUM(G106:G107) -> 0 | H108: =SUM(H106:H107) -> 0 | I108: =SUM(F108:H108) -> 0 | J108: 3 | K108: =VLOOKUP($B106,$L$49:$Q$65,4,0) -> 1
B109: 11 | C109: =C111 -> Movilidad | D109: =IFERROR(F109/F111,0) -> 0 | E109: 0 | F109: =SUMIFS(G$49:G$70,$C$49:$C$70,$C109,$D$49:$D$70,$J109) -> 0 | G109: 0 | H109: 0 | I109: 0 | J109: 1 | K109: =VLOOKUP($B110,$L$49:$Q$65,4,0) -> 
C110: =C111 -> Movilidad | D110: =IFERROR(F109/F111,0) -> 0 | E110: 0 | F110: 0 | G110: 0 | H110: 0 | I110: 0 | J110: 2 | K110: =VLOOKUP($B111,$L$49:$Q$65,4,0) -> 0.2
B111: 11 | C111: =M60 -> Movilidad | D111: =IFERROR(VLOOKUP($B109,$L$49:$Q$65,6,0),0) -> 0 | E111: 0 | F111: =SUM(F109:F110) -> 0 | G111: =SUM(G109:G110) -> 0 | H111: =SUM(H109:H110) -> 0 | I111: =SUM(F111:H111) -> 0 | J111: 3 | K111: =VLOOKUP($B109,$L$49:$Q$65,4,0) -> 0.2
B112: 12 | C112: Viajes | F112: =SUMIFS(G$49:G$70,$C$49:$C$70,$C112,$D$49:$D$70,$J112) -> 0 | G112: 0 | H112: 0 | I112: 0 | J112: =J111 -> 3
B113: 13 | C113: Mantenimiento | F113: 0 | G113: 0 | H113: 0 | I113: 0 | J113: =J112 -> 3
B114: 14 | C114: Administración | F114: 0 | G114: 0 | H114: 0 | I114: 0 | J114: =J113 -> 3
B115: 15 | C115: Construcciones | F115: 0 | G115: 0 | H115: 0 | I115: 0 | J115: =J114 -> 3
B116: 16 | C116: Otros Gastos | F116: 0 | G116: 0 | H116: 0 | I116: 0 | J116: =J115 -> 3
B117: T1 | C117: $ Total General (Año 1) | F117: =SUMIFS(F$79:F$116,$J$79:$J$116,$J117) -> 0 | G117: =SUMIFS(G$79:G$116,$J$79:$J$116,$J117) -> 0 | H117: 0 | I117: 0 | J117: =J106 -> 1
B118: T2 | C118: $ Total General (Año 2) | F118: =SUMIFS(F$79:F$116,$J$79:$J$116,$J118) -> 0 | G118: 0 | H118: 0 | I118: 0 | J118: =J107 -> 2
B119: T3 | C119: ="TotalesPlan compras - (máximo):" -> TotalesPlan compras - (máximo): | E119: =M78 -> 25000000 | F119: =SUMIFS(F$79:F$116,$J$79:$J$116,$J119) -> 0 | G119: 0 | H119: 0 | I119: 0 | J119: =J108 -> 3
B121: Nombre Institución Externa : | E121: =IF(General!C30=0,"",General!C30) -> 
D123: Propuesta: | E123: =D7 -> 0
C125: Firma de responsable

Sheet Impactos
A1: 10 | G1: *Pueden Ocultar las Filas que no se utilicen.
C2: PRESENTACIÓN DE PROYECTOS DE INVESTIGACIÓN | D2: =General!$H$2 -> Fecha de Emisión: 2017/02/28 | E2: =General!$I$2 -> IN-IV-F-14
D3: =General!$H$3 -> Revision N°: 2 | E3: ="Página "&$A$1&" de "&Dt_TPG -> Página 10 de 11 | G3: =SUM(G7:G3500) -> 1 | H3: <== Total de palabras
A5: 14.- | B5: # | C5: Impactos asociados a la propuesta. | G5: Largo
B7: N° | C7: Impacto | D7: Categoria | E7: Plazo | G7: =IF(C7="",0,LEN(TRIM(C7))-LEN(SUBSTITUTE(TRIM(C7)," ",""))+1) -> 1 | J7: No | K7: Tipo | L7: Duración
B8: =ROW()-7 -> 1 | G8: =IF(C8="",0,LEN(TRIM(C8))-LEN(SUBSTITUTE(TRIM(C8)," ",""))+1) -> 0 | J8: 1 | K8: Fin de la pobreza | L8: Corto (1 año)
B9: =ROW()-7 -> 2 | G9: 0 | J9: =J8+1 -> 2 | K9: Hambre Cero (0) | L9: Medio (2 años)
B10: 3 | G10: 0 | J10: =J9+1 -> 3 | K10: Salud y bienestar | L10: Largo (3 años)
B11: 4 | G11: 0 | J11: 4 | K11: Educación de calidad
B12: 5 | G12: 0 | J12: 5 | K12: Igualdad de genero
B13: 6 | G13: 0 | J13: 6 | K13: Agua limpia y saneamiento
B14: 7 | G14: 0 | J14: 7 | K14: Energía asequible y no contaminante
B15: 8 | G15: 0 | J15: 8 | K15: Trabajo decente y crecimiento económico
B16: 9 | G16: 0 | J16: 9 | K16: Industria, innovación e infraestructura
B17: 10 | G17: 0 | J17: 10 | K17: Reducción de las desigualdades
B18: 11 | G18: 0 | J18: 11 | K18: Ciudades y comunidades sostenibles
B19: 12 | G19: 0 | J19: 12 | K19: Producción y consumo responsables
B20: 13 | G20: =IF(C20="",0,LEN(TRIM(C20))-LEN(SUBSTITUTE(TRIM(C20)," ",""))+1) -> 0 | J20: 13 | K20: Acción por el clima
B21: 14 | G21: 0 | J21: 14 | K21: Vida submarina
B22: 15 | G22: 0 | J22: 15 | K22: Vida de ecosistemas terrestres
B23: 16 | G23: 0 | J23: 16 | K23: Paz, justicia e instituciones sólidas
J24: 17 | K24: Alianzas para lograr los objetivos
J25: 18 | K25: Ciencias básicas
J26: =J25+1 -> 19 | K26: Otros
B39: *Pueden Ocultar las Filas que no se utilicen.

Sheet Bibliografía
A1: 11 | G1: *Pueden Ocultar las Filas que no se utilicen.
C2: PRESENTACIÓN DE PROYECTOS DE INVESTIGACIÓN | D2: =General!$H$2 -> Fecha de Emisión: 2017/02/28 | E2: =General!$I$2 -> IN-IV-F-14
D3: =General!$H$3 -> Revision N°: 2 | E3: ="Página "&$A$1&" de "&Dt_TPG -> Página 11 de 11 | G3: =SUM(G7:G3500) -> 0 | H3: <== Total de palabras
A5: 15.- | B5: # | C5: Bibliografía de la propuesta. | G5: Largo
B7: =ROW()-6 -> 1 | G7: =IF(C7="",0,LEN(TRIM(C7))-LEN(SUBSTITUTE(TRIM(C7)," ",""))+1) -> 0
B8: =ROW()-6 -> 2 | G8: =IF(C8="",0,LEN(TRIM(C8))-LEN(SUBSTITUTE(TRIM(C8)," ",""))+1) -> 0
B9: 3 | G9: 0
B10: 4 | G10: 0
B11: 5 | G11: 0
B12: 6 | G12: 0
B13: 7 | G13: 0
B14: 8 | G14: 0
B15: 9 | G15: 0
B16: 10 | G16: 0
B17: 11 | G17: 0
B18: 12 | G18: 0
B19: 13 | G19: 0
B20: 14 | G20: 0
B21: 15 | G21: 0
B22: 16 | G22: 0
B23: 17 | G23: 0
B24: 18 | G24: 0
B25: 19 | G25: 0
B26: 20 | G26: 0
B27: 21 | G27: 0
B28: 22 | G28: 0
B29: 23 | G29: 0
B30: 24 | G30: 0
B31: 25 | G31: 0
B32: 26 | G32: 0
B33: 27 | G33: 0
B34: 28 | G34: 0
B35: 29 | G35: 0
B39: *Pueden Ocultar las Filas que no se utilicen.
